Cogmind - Beta 15 @@@ ROGUE MODE // 2025.09.11 @ 20:55:17 Player: Dadrick Result: Heading to fleet! Performance ------------- Evolutions (9) 4500 Regions Visited (35) 7000 Robots Destroyed (267) 1335 Value Destroyed (8060) 8060 Prototype IDs (364) 7280 Alien Tech Used (6) 1200 Bonus (32972) 32972 TOTAL SCORE: 62347 Bonus ------- High Alert Combat Kills 500 Follower Combat Kills 6295 Network Hubs Disabled 200 Met Data Miner 300 Met Imprinter 300 Was Imprinted 300 Met Zhirov 300 Built Enhanced Grunts 300 Used Core Reset Matrix 3000 Destroyed MAIN.C Guards 500 Met MAIN.C 5000 Destroyed MAIN.C Shell 5000 Destroyed MAIN.C 10000 Win 3000 Friendly Fire -2023 Cogmind --------- Core Integrity 1555/1600 Matter 290/300 Energy 784/790 System Corruption 7% Temperature Cool (12) Movement Flying (24) Location To Fleet Rendezvous Parts ------- > --- POWER (2) -------- Zionite Light DM Reactor Light Quantum Reactor > --- PROPULSION (8) --- Advanced Surge Thruster Cooled Field Propulsion Drive Cooled Field Propulsion Drive Cooled Field Propulsion Drive Impulse Thruster Array Impulse Thruster Array > --- UTILITY (12) ----- Experimental Heat Sink Experimental Energy Well Improved Melee Analysis Suite Improved Melee Analysis Suite Advanced Melee Analysis Suite Zionite Weapon Casing Centrium Light Armor Plating Medium Regenerative Plating Graphene Brace Advanced Hacking Suite Experimental System Shield > --- WEAPON (3) ------- Nanosword Sigix Broadsword > --- INVENTORY (5) ---- Advanced Surge Thruster Ragnarok Missile Launcher Power Sword Power Sword Nanosword Peak State ------------ > --- POWER ------------ Light Antimatter Reactor Light Quantum Reactor > --- PROPULSION ------- Advanced Surge Thruster Cooled Field Propulsion Drive Cooled Field Propulsion Drive Cooled Field Propulsion Drive Impulse Thruster Array Impulse Thruster Array > --- UTILITY ---------- Experimental Heat Sink Medium Storage Unit Experimental Energy Well Enhanced Optical Array Experimental Signal Interpreter Advanced Melee Analysis Suite Centrium Light Armor Plating Medium Regenerative Plating Graphene Brace Advanced Hacking Suite Advanced Hacking Suite Experimental System Shield > --- WEAPON ----------- Nanosword Sigix Broadsword > --- INVENTORY -------- Light Quantum Reactor Advanced Surge Thruster Advanced Surge Thruster Advanced Transmission Jammer Nova Cannon Mini Smartbomb Launcher Core Stripper Nanosword [Rating: 202] Favorites ----------- Power Reinforced Deuterium Engine Engine Reinforced Deuterium Engine Power Core Micro Nuclear Core Reactor Micro Antimatter Reactor Propulsion Aluminum Leg Treads Heavy Treads Leg Aluminum Leg Hover Unit Backup Propulsion III Flight Unit Nuclear Pulse Array Utility High-capacity Storage Unit Device Advanced Sensor Array Storage High-capacity Storage Unit Processor Enhanced Optical Array Hackware Hacking Suite Protection Layered Light Armor Plating Weapon Gauss Rifle Energy Gun Medium Laser Energy Cannon Nova Cannon Ballistic Gun Gauss Rifle Ballistic Cannon Improved Light Cannon Launcher Mini Smartbomb Launcher Special Weapon Mining Laser Impact Weapon Core Stripper Slashing Weapon Power Sword Piercing Weapon CR-A16's Pointy Stick Special Melee Weapon Improved Datajack Build | -11 -10 -10 -9 -9 -9 -8 -8 -7 -7 -7 -7 -6 -6 -6 -6 -6 -6 -6 -5 -5 -5 -5 -5 -4 -4 -4 -4 -4 -4 -3 -3 -2 -2 -1 -1 ------- Run | Yrd Mat Min Mat Min Exi Min Mat Fac Low Low Dat Pro Fac Was Fac Low Low Zio Pro Fac Upp Upp Zhi Pro Fac Ext Cet Arc Hub Res Tes Res Qua Acc Com Slots Evolved 18 | . . . 2 . . . 2 2 . . . . 2 . . . . . . 2 . . . . 2 . . . . 2 . 2 . 2 . Power 1 | . . . . . . . . . . . . . . . . . . . . . . . . . . . . . . 1 . . . . . Propulsion 6 | . . . 1 . . . . . . . . . 1 . . . . . . 2 . . . . 1 . . . . 1 . . . . . Utility 10 | . . . . . . . 2 2 . . . . 1 . . . . . . . . . . . 1 . . . . . . 2 . 2 . Weapon 1 | . . . 1 . . . . . . . . . . . . . . . . . . . . . . . . . . . . . . . . Parts Attached 261 | 7 11 1 21 1 . 2 27 27 3 1 . 2 22 12 17 . 1 . 1 15 1 . 4 . 10 9 4 1 5 8 8 16 4 3 17 Power 26 | 1 1 . 2 1 . . 3 3 . . . . 1 . 1 . . . . 2 . . 1 . . 1 . . 1 1 1 1 3 1 1 Engine 11 | 1 1 . 2 1 . . 3 2 . . . . 1 . . . . . . . . . . . . . . . . . . . . . . Core 5 | . . . . . . . . 1 . . . . . . 1 . . . . 2 . . . . . . . . . 1 . . . . . Reactor 10 | . . . . . . . . . . . . . . . . . . . . . . . 1 . . 1 . . 1 . 1 1 3 1 1 Propulsion 68 | 2 3 . 8 . . . 2 8 2 1 . . 7 5 2 . . . 1 4 . . 2 . 1 1 . . 3 4 2 8 . . 2 Treads 2 | . . . . . . . . . . . . . . 2 . . . . . . . . . . . . . . . . . . . . . Leg 33 | 2 3 . 8 . . . 2 8 2 1 . . 7 . . . . . . . . . . . . . . . . . . . . . . Wheel . | . . . . . . . . . . . . . . . . . . . . . . . . . . . . . . . . . . . . Hover . | . . . . . . . . . . . . . . . . . . . . . . . . . . . . . . . . . . . . Flight 33 | . . . . . . . . . . . . . . 3 2 . . . 1 4 . . 2 . 1 1 . . 3 4 2 8 . . 2 Utility 108 | 2 4 . 3 . . 1 11 11 1 . . 1 6 6 10 . 1 . . 6 1 . 1 . 9 4 4 1 1 2 3 4 . 2 13 Device 43 | 1 1 . . . . . 4 5 1 . . . 3 4 6 . . . . 3 1 . 1 . 5 2 . . . . 2 2 . . 2 Storage 12 | 1 2 . 1 . . . 1 1 . . . . . . . . . . . 1 . . . . 1 1 . . . . . . . . 3 Processor 14 | . . . . . . . 1 1 . . . . 2 1 2 . 1 . . . . . . . . . . . . 1 1 . . 1 3 Hackware 16 | . . . . . . . 1 . . . . . 1 . 1 . . . . 1 . . . . 3 . 1 1 1 1 . 2 . 1 2 Protection 23 | . 1 . 2 . . 1 4 4 . . . 1 . 1 1 . . . . 1 . . . . . 1 3 . . . . . . . 3 Artifact . | . . . . . . . . . . . . . . . . . . . . . . . . . . . . . . . . . . . . Weapon 59 | 2 3 1 8 . . 1 11 5 . . . 1 8 1 4 . . . . 3 . . . . . 3 . . . 1 2 3 1 . 1 Energy Gun 5 | 1 1 1 1 . . . . . . . . . . . 1 . . . . . . . . . . . . . . . . . . . . Energy Cannon 3 | . . . . . . . . . . . . . 1 . . . . . . . . . . . . . . . . . 1 1 . . . Ballistic Gun 18 | 1 1 . . . . . 7 4 . . . 1 4 . . . . . . . . . . . . . . . . . . . . . . Ballistic Cannon 10 | . . . 4 . . 1 2 . . . . . 1 . 1 . . . . 1 . . . . . . . . . . . . . . . Launcher 7 | . 1 . 1 . . . . 1 . . . . 1 1 . . . . . 1 . . . . . 1 . . . . . . . . . Special Weapon 2 | . . . . . . . 1 . . . . . . . . . . . . . . . . . . 1 . . . . . . . . . Impact Weapon 1 | . . . . . . . . . . . . . . . . . . . . . . . . . . . . . . . . . . . 1 Slashing Weapon 8 | . . . 1 . . . 1 . . . . . 1 . 1 . . . . 1 . . . . . . . . . 1 . 1 1 . . Piercing Weapon 1 | . . . . . . . . . . . . . . . . . . . . . . . . . . 1 . . . . . . . . . Special Melee Weapon 4 | . . . 1 . . . . . . . . . . . 1 . . . . . . . . . . . . . . . 1 1 . . . Unidentified Prototypes 28 | . . . . . . . 2 1 . . . . 1 . 1 . . . . 2 . . 4 . 2 1 3 . 1 2 2 1 2 . 3 Parts Lost 88 | . 6 . 3 1 . 4 12 13 . . . 1 24 . 1 . . . 1 2 . . . . 1 1 . . 5 1 2 6 . . 4 Power 11 | . . . . 1 . 1 1 2 . . . . 2 . . . . . . 1 . . . . . 1 . . 1 . . . . . 1 Propulsion 31 | . 3 . 2 . . 2 1 5 . . . . 8 . 1 . . . 1 . . . . . 1 . . . 3 . . 3 . . 1 Utility 24 | . 1 . 1 . . . 4 4 . . . . 7 . . . . . . 1 . . . . . . . . 1 1 2 1 . . 1 Weapon 22 | . 2 . . . . 1 6 2 . . . 1 7 . . . . . . . . . . . . . . . . . . 2 . . 1 Highest Loss Streak 10 | . 2 . 2 1 . 4 8 7 . . . 1 10 . 1 . . . 1 2 . . . . 1 1 . . 3 1 2 3 . . 2 To Critical Strikes 1 | . . . . . . . . . . . . . . . . . . . . . . . . . . . . . . . . 1 . . . Average Backups 14 | 1 7 9 18 20 20 19 18 18 20 19 20 19 18 4 5 5 5 5 5 5 9 9 9 9 12 14 14 14 14 14 14 14 14 13 7 Power 1 | . 1 1 1 . 1 1 1 1 2 1 1 1 . . . 1 1 1 1 . 1 1 1 1 1 . . . . 1 1 . . 1 1 Propulsion 1 | . . . 1 1 1 1 . 2 3 3 4 4 2 . . . . . . . 1 1 1 1 . . 1 1 . 1 2 2 2 1 . Utility 6 | . 2 3 6 9 9 9 8 7 8 7 8 8 7 1 2 3 3 2 2 2 4 4 3 3 5 8 7 8 8 8 8 8 7 6 2 Weapon 4 | 1 3 5 8 9 9 8 7 6 5 5 5 4 5 1 1 . . 1 2 2 3 3 3 3 2 3 3 2 2 2 3 3 3 4 3 Tool/Special . | . . . . . . . . . . . . . . . . . . . . . . . . . . . . . . . . . . . . Unused Backups 49 | . . . 3 1 . . 7 5 . 1 . . 6 1 3 . . . . 2 . . 1 . 3 . . . . 1 2 4 3 . 6 Power 7 | . . . . . . . 2 1 . . . . 2 . 1 . . . . . . . . . 1 . . . . . . . . . . Propulsion 9 | . . . . . . . 1 3 . . . . . . . . . . . . . . . . . . . . . 1 . . 2 . 2 Utility 17 | . . . . 1 . . 1 1 . 1 . . 1 . 2 . . . . 2 . . 1 . 1 . . . . . 1 4 . . 1 Weapon 12 | . . . 2 . . . 3 . . . . . 2 . . . . . . . . . . . 1 . . . . . 1 . . . 3 Tool/Special 4 | . . . 1 . . . . . . . . . 1 1 . . . . . . . . . . . . . . . . . . 1 . . Average Slot Usage (%) 88 | . 98 100 97 98 100 84 88 96 84 84 63 84 82 59 92 93 93 93 92 86 88 88 91 94 85 84 83 84 77 72 87 87 90 82 85 Engine 4 | . 14 14 11 9 11 6 7 6 7 7 7 7 5 5 . . . . . . . . . . . . . . . . . . . . . Core 1 | . . . . . . . . . . . . . . . 5 6 6 6 6 5 5 5 4 5 5 . . . . 3 4 2 . . . Reactor 1 | . . . . . . . . . . . . . . . . . . . . . . . . . . 4 5 5 4 . 2 4 8 8 6 Leg 13 | . 26 28 31 33 33 23 21 21 23 23 23 23 24 . . . . . . . . . . . . . . . . . . . . . . Flight 10 | . . . . . . . . . . . . . . 7 20 20 20 20 19 21 23 23 26 29 25 26 26 26 23 24 27 25 26 24 24 Device 9 | . 5 9 3 7 11 6 8 8 7 7 7 7 12 11 15 13 13 13 13 11 11 11 11 11 12 7 5 5 5 4 7 13 17 16 9 Storage 6 | . 14 14 11 11 11 11 9 7 7 7 7 7 5 . . . . . . 1 5 5 5 5 5 5 5 5 5 4 4 4 4 4 4 Processor 7 | . . . . . . . 3 13 7 7 7 7 7 5 12 13 13 13 13 11 11 11 11 11 10 10 10 10 10 9 9 8 8 11 14 Hackware 6 | . . . . . . . 6 5 . . . . . 6 11 13 13 13 13 9 5 5 5 5 8 15 15 15 15 13 14 15 13 14 12 Protection 5 | . 8 4 7 3 . 4 5 7 6 7 7 7 4 1 6 6 6 6 6 4 4 5 5 5 3 2 4 5 4 2 1 1 . . 7 Ballistic Gun 7 | . 13 12 . . . . 22 22 23 23 2 23 12 . . . . . . . . . . . . . . . . . . . . . . Ballistic Cannon 3 | . . . 20 22 22 20 1 . . . . . . . 2 6 6 6 5 3 . . . . . . . . . . . . . . . Slashing Weapon 4 | . . . 9 11 11 11 1 . . . . . 4 1 6 6 6 6 6 6 10 11 11 11 9 5 5 5 5 4 4 3 7 4 6 Special Melee Weapon 1 | . . . . . . . . . . . . . . . 4 5 5 6 6 5 5 5 5 5 . 1 . . . . 3 2 3 . . Peak Build Rating 202 | 7 9 8 17 17 16 16 34 61 61 63 63 64 78 71 76 74 75 74 74 90 90 89 94 91 104 110 110 113 115 128 147 173 187 191 202 Average Rating 69 | 5 7 8 14 16 16 14 23 40 60 61 51 63 70 50 69 73 73 74 71 81 86 87 89 91 97 102 108 112 108 108 135 160 173 184 194 On Entrance 73 | . 7 8 8 17 16 16 13 34 61 61 63 63 64 4 71 74 74 74 74 71 88 88 88 91 91 97 103 110 113 72 128 147 169 187 185 Naked Turns 1 | . . . . . . . . . . . . . 1 . . . . . . . . . . . . . . . . . . . . . . Heaviest Build 83 | 15 30 30 62 60 54 56 77 83 79 79 79 79 83 20 26 25 25 25 25 33 34 32 32 32 42 43 43 43 52 49 59 59 62 60 66 Greatest Support 140 | 20 20 20 33 30 30 30 35 38 38 45 45 45 66 140 29 28 28 28 28 40 36 40 36 35 51 51 43 43 52 61 65 69 72 72 72 Greatest Overweight (x) 24 | . 2 1 2 1 1 5 18 24 2 2 1 1 2 2 . . . . . . . . 1 . 1 1 . . . . . . 1 . 1 Average Overweight (x) . | . . 1 1 1 1 1 1 2 1 1 1 1 . . . . . . . . . . . . . . . . . . . . . . . Largest Inventory Capacity 20 | 8 15 15 20 20 20 20 20 20 20 20 20 20 20 5 5 5 5 5 5 10 10 10 10 10 15 15 15 15 15 15 15 15 15 15 15 Average Capacity 15 | 7 11 15 18 20 20 20 20 20 20 20 20 20 19 5 5 5 5 5 5 6 10 10 10 10 13 15 15 15 15 15 15 15 15 15 8 Most Carried 20 | 3 10 10 20 20 20 20 20 20 20 20 20 20 20 5 5 5 5 5 5 10 10 10 10 10 15 15 15 15 15 15 15 15 15 15 15 Average Carried 14 | 1 7 9 18 19 20 19 18 18 19 19 20 19 18 4 4 5 5 5 5 6 10 10 9 10 12 14 14 15 14 14 14 14 14 14 8 Final Capacity 20 | 8 15 15 20 20 20 20 20 20 20 20 20 20 5 5 5 5 5 5 5 10 10 10 10 10 15 15 15 15 15 15 15 15 15 15 5 Final Carried 20 | 3 9 10 20 20 20 19 20 20 20 20 20 20 5 5 5 5 5 5 5 10 10 10 10 10 13 15 15 15 15 15 15 15 15 15 5 Class Distribution -------------------- 16% | Hacker-Scout 14% | Scavenger-Mutant 11% | Scavenger-Skirmisher 10% | Mutant 9% | Hacker-Ninja 6% | Scavenger-Assassin 6% | Skirmisher 5% | Commander-Scout 4% | Scavenger-Tank 3% | Ninja 3% | Scout Dominant Class ---------------- Mutant | -10/Materials Mutant | -10/Mines Scavenger-Mutant | -9/Materials Scavenger-Mutant | -9/Mines Scavenger-Mutant | -9/Exiles Scavenger-Mutant | -8/Mines Scavenger-Tank | -8/Materials Skirmisher | -7/Factory Scavenger-Skirmisher | -7/Lower Caves Scavenger-Skirmisher | -7/Lower Caves Mutant | -7/Data Miner Skirmisher | -6/Proximity Caves Scavenger-Assassin | -6/Factory Mutant | -6/Waste Hacker-Scout | -6/Factory Hacker-Scout | -6/Lower Caves Hacker-Scout | -6/Lower Caves Hacker-Scout | -6/Zion Hacker-Scout | -5/Proximity Caves Hacker-Scout | -5/Factory Ninja | -5/Upper Caves Scout | -5/Upper Caves Scout | -5/Zhirov Scout | -4/Proximity Caves Ninja | -4/Factory Hacker-Scout | -4/Extension Commander-Scout | -4/Cetus Commander-Scout | -4/Archives Commander-Scout | -4/Hub_04(d) Hacker-Scout | -3/Research Hacker-Ninja | -3/Testing Hacker-Ninja | -2/Research Hacker-Ninja | -2/Quarantine Hacker-Ninja | -1/Access Commander-Sprinter | -1/Command Resources | -11 -10 -10 -9 -9 -9 -8 -8 -7 -7 -7 -7 -6 -6 -6 -6 -6 -6 -6 -5 -5 -5 -5 -5 -4 -4 -4 -4 -4 -4 -3 -3 -2 -2 -1 -1 ----------- Run | Yrd Mat Min Mat Min Exi Min Mat Fac Low Low Dat Pro Fac Was Fac Low Low Zio Pro Fac Upp Upp Zhi Pro Fac Ext Cet Arc Hub Res Tes Res Qua Acc Com Matter Collected 9765 | 303 233 293 1120 104 . 15 857 1288 264 258 . 223 1167 155 259 30 81 93 44 257 . 45 270 8 229 612 80 30 47 258 150 416 120 180 276 Remotely 1386 | . . . . . . . 273 590 126 . . . 397 . . . . . . . . . . . . . . . . . . . . . . Salvage Created 11339 | 113 403 . 1054 155 . 124 709 1214 77 144 . 124 1423 40 331 15 23 . . 1227 . . 346 . 766 500 80 143 129 338 89 327 220 87 1138 Parts 566 | 7 37 . 72 10 . 6 42 68 2 8 . 12 76 2 10 1 4 . . 37 . . 3 . 36 21 4 13 7 22 5 11 9 5 36 Haulers Intercepted 25 | . 1 . 6 . . . 5 . . . . . . . 3 . . . . 6 . . . . 3 . . . . . . 1 . . . Recyclers Shooed 13 | . . . 1 1 . . . 2 . . . . 5 . . . . . . 1 . . . . . . . . . 2 . . . . 1 Parts Field Recycled . | . . . . . . . . . . . . . . . . . . . . . . . . . . . . . . . . . . . . Retrieved Matter . | . . . . . . . . . . . . . . . . . . . . . . . . . . . . . . . . . . . . Parts Self-Destructed 39 | . . . . . . . . . 3 4 . 14 . . . 1 6 . 8 . . . 3 . . . . . . . . . . . . Prevented 1 | . . . . . . . . . 1 . . . . . . . . . . . . . . . . . . . . . . . . . . Kills | -11 -10 -10 -9 -9 -9 -8 -8 -7 -7 -7 -7 -6 -6 -6 -6 -6 -6 -6 -5 -5 -5 -5 -5 -4 -4 -4 -4 -4 -4 -3 -3 -2 -2 -1 -1 ------- Run | Yrd Mat Min Mat Min Exi Min Mat Fac Low Low Dat Pro Fac Was Fac Low Low Zio Pro Fac Upp Upp Zhi Pro Fac Ext Cet Arc Hub Res Tes Res Qua Acc Com Combat Hostiles Destroyed 148 | . 16 3 29 2 . 6 10 24 1 2 . 4 25 . . 3 4 . . . . . . . 2 1 . . . 8 1 1 1 1 4 Melee 12 | . . . . . . . . . . . . . 1 . . . . . . . . . . . 2 1 . . . . 1 1 1 1 4 Guns 62 | . 12 . . . . . 7 18 1 2 . 4 18 . . . . . . . . . . . . . . . . . . . . . . Cannons 26 | . . . 21 2 . 1 . . . . . . 2 . . . . . . . . . . . . . . . . . . . . . . AOE 48 | . 4 3 8 . . 5 3 6 . . . . 4 . . 3 4 . . . . . . . . . . . . 8 . . . . . Classes Destroyed 24 | 2 4 1 6 . . . . 6 1 1 . . . . . . . . . . . . . . 1 1 . . . . . . . . 1 Worker 18 | . . . 2 . . . . 5 . . . . 4 . . . . . . 1 . . . . 1 . . . . 1 . 1 . . 3 Builder 14 | . . . 2 1 . 1 . 2 . . . . 6 . . . . . . . . . . . . . . . . . 1 1 . . . Tunneler 4 | 2 . . . . . . . 1 . . . . . . . . . . . . . . . . . . . . . 1 . . . . . Hauler 25 | . 1 . 6 . . . 5 . . . . . . . 3 . . . . 6 . . . . 3 . . . . . . 1 . . . Recycler 19 | 1 . . . 1 . . 1 1 . . . . 1 . . . . . . 4 . . . . 1 2 . . 1 1 . . 1 . 4 Minesweeper 1 | . . . . . . . . . 1 . . . . . . . . . . . . . . . . . . . . . . . . . . Mechanic 3 | . . . . . . . . 1 . . . . . . . . . . . 1 . . . . . 1 . . . . . . . . . Operator 13 | . . . 2 . . . . . . . . . . . 1 . . . . 2 . . . . 1 1 . 4 1 . . 1 . . . Drone 1 | . . . . . . . . . . . . . . . . . . . . . . . . . 1 . . . . . . . . . . Watcher 21 | . 3 . 2 . . . . . . . . . . . . . . . . 2 . . . . 6 1 . . . 2 . 3 . 1 1 Swarmer 47 | . 11 . 7 . . . 3 . . . . 3 7 . . 3 4 . . . . . . . . . . . . 8 . . . 1 . Grunt 46 | . 5 . 11 2 . 6 2 10 . 1 . . 8 . . . . . . . . . . . . . . . . . . . 1 . . Brawler 1 | . . . 1 . . . . . . . . . . . . . . . . . . . . . . . . . . . . . . . . Duelist 3 | . . . 1 . . . . 1 . . . . 1 . . . . . . . . . . . . . . . . . . . . . . Protector 1 | . . . . . . . . 1 . . . . . . . . . . . . . . . . . . . . . . . . . . . Sentry 18 | . . . 9 . . . 5 . . . . . 4 . . . . . . . . . . . . . . . . . . . . . . Specialist 2 | . . . . . . . . 2 . . . . . . . . . . . . . . . . . . . . . . . . . . . Hunter 5 | . . . . . . . . 4 . . . . . . . . . . . . . . . . . . . . . . . . . . 1 Programmer 17 | . . . . . . . . 5 . 1 . 1 5 . . . . . . . . . . . 1 . . . . . 1 1 . . 2 Heavy 1 | . . . . . . . . 1 . . . . . . . . . . . . . . . . . . . . . . . . . . . Behemoth 1 | . . . . . . . . . . . . . . . . . . . . . . . . . . 1 . . . . . . . . . Assembled 3 | . . 3 . . . . . . . . . . . . . . . . . . . . . . . . . . . . . . . . . Wasp 1 | . . . . . . . . . . . . . . 1 . . . . . . . . . . . . . . . . . . . . . Savage 1 | . . . . . . . . . 1 . . . . . . . . . . . . . . . . . . . . . . . . . . Martyr 2 | . . . . . . . . . . . . . . . . . . . . . . . . . . . . . . . . . . . 2 Mutant 1 | . . . . . . . . . . 1 . . . . . . . . . . . . . . . . . . . . . . . . . Best Kill Streak 13 | 2 4 3 5 2 . 7 4 13 1 1 . 3 13 . 1 3 4 . . 2 . . . . 2 2 . 3 1 9 1 2 1 1 6 Combat Bots Only 9 | . 4 3 4 2 . 6 3 9 1 1 . 3 8 . . 3 4 . . . . . . . 1 1 . . . 8 1 1 1 1 1 Max Kills in Single Turn 4 | 1 2 3 4 1 . 2 3 3 1 1 . 1 4 1 1 2 3 . . 1 . . . . 1 1 1 1 1 3 1 2 1 1 1 Gunslinging 1 | . 1 . . . . . . . . . . . . . . . . . . . . . . . . . . . . . . . . . . Exploded 3 | . 2 3 3 . . 2 3 2 . . . . 2 . . 2 3 . . . . . . . . . . . . 2 . . . . . Melee 1 | . . . . . . . . . . . . . 1 . . . . . . . . . . . 1 1 . . . . 1 1 1 1 1 Uniques/NPCs Destroyed 3 | . . . . . . . . . . . . . . . . . . . . . . . . . . . 1 . . . . . . . 2 A7 (-4/Cetus) MAIN.C Shell (-1/Command) MAIN.C (-1/Command) Combat | -11 -10 -10 -9 -9 -9 -8 -8 -7 -7 -7 -7 -6 -6 -6 -6 -6 -6 -6 -5 -5 -5 -5 -5 -4 -4 -4 -4 -4 -4 -3 -3 -2 -2 -1 -1 -------- Run | Yrd Mat Min Mat Min Exi Min Mat Fac Low Low Dat Pro Fac Was Fac Low Low Zio Pro Fac Upp Upp Zhi Pro Fac Ext Cet Arc Hub Res Tes Res Qua Acc Com Hostile Shots Fired 1421 | . 100 22 131 10 . 43 146 207 4 18 . 23 298 . . 16 11 . 1 11 4 5 . . 45 32 . . 24 21 20 134 12 20 63 Missed 514 | . 32 5 41 4 . 13 32 63 1 4 . 5 98 . . 10 5 . 1 1 4 5 . . 24 13 . . 11 13 12 72 7 13 25 Hits 907 | . 68 17 90 6 . 30 114 144 3 14 . 18 200 . . 6 6 . . 10 . . . . 21 19 . . 13 8 8 62 5 7 38 Melee 27 | . . . 5 . . . 7 8 . . . . 4 . . . . . . . . . . . . . . . 3 . . . . . . Projectile 880 | . 68 17 85 6 . 30 107 136 3 14 . 18 196 . . 6 6 . . 10 . . . . 21 19 . . 10 8 8 62 5 7 38 AOE 2 | . . . . . . . . . . . . . . . . . . . . . . . . . . . . . 2 . . . . . . Critical Strikes 50 | . 1 . 4 . . 1 8 16 . 1 . . 5 . . . 1 . . 1 . . . . 1 . . . 2 . . 7 . . 2 Actively Blocked 4 | . . . . . . . . . . . . . . . . . . . . . . . . . . . . . 1 . . 1 . . 2 Part Disruptions 2 | . . . . . . . . 1 . . . . . . . . . . . . . . . . . . . . . . 1 . . . . Damage Taken 16101 | . 932 221 1217 92 . 569 1796 2386 182 222 . 265 2907 . 22 71 88 . 74 224 . . . . 481 371 14 . 639 182 176 1277 113 179 1401 Core 2517 | . 130 35 170 . . 96 439 434 1 10 . 27 305 . . 13 27 . . 41 . . . . 70 90 14 . 245 65 23 237 . . 45 Absorbed by Shields 237 | . . . . . . . . 115 . . . . . . . . . . . . . . . . . 26 13 . . . . 83 . . . Redirected to Shielding 292 | . 17 6 29 . . . . . . . . . . . . . . . . . . . . . . . . . . . . . . . 240 Ignored by Resistances 148 | . . . . . . . 20 128 . . . . . . . . . . . . . . . . . . . . . . . . . . . Regen/Repaired (Parts) 1256 | . 46 . 48 . . . 267 . . . . . . 110 . . . . . . . . . . 1 . 1 . . 48 66 28 . 128 513 Core Remaining (%) 64 | 100 . 34 . . . 33 20 . . . . 32 . . . . . . 59 . . . . 95 . . . . 58 . 93 . 83 . 97 Volleys Fired 443 | 11 48 4 86 7 . 10 51 76 3 13 . 8 67 . . 6 3 . 4 3 7 2 . . 1 7 . . 2 10 3 4 6 . 1 Largest 3 | 2 2 1 2 2 . 2 3 3 3 3 . 3 3 . . 1 1 . 1 1 1 1 . . 1 1 . . 1 1 1 1 1 . 1 Hottest 113 | 70 70 30 66 66 . 63 100 84 84 84 . 84 86 . . 40 30 . 40 47 47 47 . . 30 80 . . 47 80 113 113 113 . 113 Shots Fired 938 | 22 90 4 166 14 . 14 114 206 10 41 . 27 168 . 1 6 3 . 4 3 7 2 . . 2 7 . . 2 10 3 5 6 . 1 Gun 632 | 22 85 . . . . . 97 196 10 41 . 27 154 . . . . . . . . . . . . . . . . . . . . . . Cannon 243 | . . . 160 14 . 8 15 . . . . . 9 . . 2 . . 4 3 7 2 . . . . . . 2 3 3 4 6 . 1 Launcher 62 | . 5 4 6 . . 6 1 10 . . . . 5 . 1 4 3 . . . . . . . 2 7 . . . 7 . 1 . . . Special 1 | . . . . . . . 1 . . . . . . . . . . . . . . . . . . . . . . . . . . . . Kinetic 807 | 11 43 . 160 14 . 8 112 196 10 41 . 27 162 . . 2 . . 4 3 7 2 . . . . . . 2 3 . . . . . Thermal 69 | 11 42 . . . . . 1 . . . . . 1 . . . . . . . . . . . . . . . . . 3 4 6 . 1 Explosive 57 | . 5 4 6 . . 6 1 10 . . . . . . 1 4 3 . . . . . . . 2 7 . . . 7 . 1 . . . Electromagnetic 5 | . . . . . . . . . . . . . 5 . . . . . . . . . . . . . . . . . . . . . . Robot Hit Streak 16 | 3 7 5 11 7 . 5 13 15 1 7 . 3 16 . 2 3 . . . . . . . . 4 5 . . . . . 6 . . . Robot Miss Streak 6 | 3 6 . 4 1 . 2 3 3 4 2 . 3 2 . . . . . . . . . . . . . . . . . . . . . . Penetration Max 2 | . . . . . . . . 1 . 1 . . 2 . . . . . . . . . . . . . . . . . . . . . . Secondary Targets 14 | . 3 . . . . . 2 4 . . . 2 3 . . . . . . . . . . . . . . . . . . . . . . Max Gunslinging Chain 1 | . 1 . . . . . 1 1 . . . 1 1 . . . . . . . . . . . . . . . . . . . . . . Shots Hit Robots 790 | 12 47 4 101 12 . 9 80 143 1 23 . 13 133 2 16 1 . 3 . 43 . . 7 . 29 21 5 10 4 10 6 16 3 3 33 Core Hits 415 | 4 30 7 54 5 . 15 27 83 3 7 . 7 66 . 8 3 5 . . 14 . . 3 . 12 11 2 2 2 16 1 12 2 2 12 Critical Kills . | . . . . . . . . . . . . . . . . . . . . . . . . . . . . . . . . . . . . Critical Parts Destroyed 4 | . 1 . . . . . . 3 . . . . . . . . . . . . . . . . . . . . . . . . . . . Critical Strikes 23 | . 3 . 2 . . . . 3 . . . . . 1 3 . . . . 2 . . . . 2 1 2 1 . . 1 . . . 2 Burn 2 | . 2 . . . . . . . . . . . . . . . . . . . . . . . . . . . . . . . . . . Destroy 4 | . 1 . . . . . . 3 . . . . . . . . . . . . . . . . . . . . . . . . . . . Blast 2 | . . . 2 . . . . . . . . . . . . . . . . . . . . . . . . . . . . . . . . Sever 14 | . . . . . . . . . . . . . . 1 3 . . . . 2 . . . . 2 . 2 1 . . 1 . . . 2 Impale 1 | . . . . . . . . . . . . . . . . . . . . . . . . . . 1 . . . . . . . . . Melee Attacks 593 | . . . 17 2 . . 4 . . . . . 47 2 40 2 . 4 19 84 7 3 7 4 87 27 5 15 7 20 35 62 19 18 56 Kinetic 7 | . . . . . . . . . . . . . . . . . . . . . . . . . . . . . . . . . . . 7 Impact . | . . . . . . . . . . . . . . . . . . . . . . . . . . . . . . . . . . . . Slashing 552 | . . . 15 2 . . 4 . . . . . 47 2 40 2 . 1 19 76 7 3 6 4 86 11 5 15 7 20 32 62 19 18 49 Piercing 3 | . . . . . . . . . . . . . . . . . . . . . . . . . . 3 . . . . . . . . . Sneak Attacks 109 | . . . 7 1 . . . . . . . . 6 2 3 . . 3 . 20 . . . . 14 17 5 6 1 3 4 4 2 . 11 Combat Hostiles 4 | . . . . . . . . . . . . . . . . . . . . . . . . . 3 . . . . . . . 1 . . Follow-up Attacks 13 | . . . . . . . . . . . . . 1 . . . . . . 1 . . 1 . 5 . . . . . . . . 1 4 Damage Inflicted 32716 | 143 874 458 3062 298 . 976 1286 4882 86 394 . 286 4163 149 896 349 341 . . 2405 . . 525 . 2038 742 300 926 498 1636 192 1396 317 190 2908 Guns 8183 | 143 576 . . . . . 988 3099 86 394 . 286 2611 . . . . . . . . . . . . . . . . . . . . . . Cannons 2546 | . . . 1834 205 . 95 138 . . . . . 236 . . . . . . . . . . . . . . . . . . 38 . . . Explosions 7620 | . 298 458 843 . . 875 160 1783 . . . . 769 . 142 349 341 . . . . . . . . 226 . . 231 1007 . 138 . . . Melee 14340 | . . . 380 93 . . . . . . . . 531 149 754 . . . . 2405 . . 525 . 2038 516 300 926 267 629 192 1220 317 190 2908 Ramming 27 | . . . 5 . . 6 . . . . . . 16 . . . . . . . . . . . . . . . . . . . . . . Kinetic 10555 | 69 291 . 1834 205 . 95 1126 3099 86 394 . 286 2825 . . . . . . . . . . . . . . . . . . . . . 245 Thermal 951 | 74 285 . . . . . . . . . . . 554 . . . . . . . . . . . . . . . . . . 38 . . . Explosive 6620 | . 298 458 843 . . 875 160 1783 . . . . . . 142 349 341 . . . . . . . . 226 . . . 1007 . 138 . . . Electromagnetic 468 | . . . . . . . . . . . . . 237 . . . . . . . . . . . . . . . 231 . . . . . . Impact . | . . . . . . . . . . . . . . . . . . . . . . . . . . . . . . . . . . . . Slashing 13980 | . . . 380 93 . . . . . . . . 531 149 754 . . . . 2405 . . 525 . 2038 401 300 926 267 629 192 1220 317 190 2663 Piercing 115 | . . . . . . . . . . . . . . . . . . . . . . . . . . 115 . . . . . . . . . Highest Corruption 13 | . 6 6 1 1 1 1 . 9 9 11 11 13 6 6 7 7 7 7 . 1 1 1 1 1 2 2 . . 1 1 2 7 7 . 7 Average Corruption 4 | . 6 6 1 1 1 1 . 7 9 9 11 12 2 6 6 7 7 7 . 1 1 1 1 1 2 1 . . 1 1 1 5 7 . 4 Corruption Purged 2 | . . . . . . . . . . . . . . . . . . . . . . . . . . 2 . . . . . . . . . Corruption Blocked . | . . . . . . . . . . . . . . . . . . . . . . . . . . . . . . . . . . . . Effects 331 | . 13 6 1 2 7 3 . 34 29 29 6 22 41 11 25 5 6 2 . . 1 . . 2 23 12 . . . 4 8 24 4 . 11 Message Errors 77 | . 1 2 . 1 2 1 . 8 7 4 1 6 12 1 3 5 1 . . . . . . . 6 4 . . . . 3 5 1 . 3 Matter Fused 75 | . 4 1 . . 3 . . 6 6 9 3 4 8 2 8 . 4 . . . . . . 2 3 1 . . . . 1 6 1 . 3 Heat Flow Errors 49 | . 2 1 . . 2 2 . 8 5 1 . 3 6 3 . . . . . . . . . . 5 3 . . . 1 1 4 1 . 1 Energy Discharges 51 | . 2 1 . . . . . 3 8 5 1 3 2 2 5 . 1 2 . . . . . . 4 2 . . . 2 2 4 1 . 1 Parts Rejected 5 | . . . . . . . . . . . . . 2 . 1 . . . . . . . . . . . . . . . . 1 . . 1 Parts Fused 1 | . . . . . . . . . . . . . . . . . . . . . . . . . 1 . . . . . . . . . . Data Loss (minor) 34 | . 3 1 1 1 . . . 3 2 4 . 1 4 3 4 . . . . . 1 . . . 2 . . . . 1 1 2 . . . Data Loss (major) 11 | . . . . . . . . 1 . 3 . 2 . . 1 . . . . . . . . . . 2 . . . . . . . . 2 Misfires 15 | . . . . . . . . 1 1 2 . 3 5 . 1 . . . . . . . . . 1 . . . . . . 1 . . . Alerts 10 | . 1 . . . . . . 3 . 1 1 . . . 2 . . . . . . . . . 1 . . . . . . 1 . . . Weapon Failures 3 | . . . . . . . . 1 . . . . 2 . . . . . . . . . . . . . . . . . . . . . . Overload Shots . | . . . . . . . . . . . . . . . . . . . . . . . . . . . . . . . . . . . . Overflow Damage 2809 | . 18 35 37 . . 6 . 45 . . . . 123 36 81 5 37 . . 221 . . 187 . 415 3 . 435 72 155 66 183 . 7 642 Projectiles 2 | . . . 2 . . . . . . . . . . . . . . . . . . . . . . . . . . . . . . . . Explosions 266 | . 18 35 5 . . 6 . 45 . . . . . . 21 5 37 . . . . . . . . 3 . . 19 72 . . . . . Melee 2541 | . . . 30 . . . . . . . . . 123 36 60 . . . . 221 . . 187 . 415 . . 435 53 83 66 183 . 7 642 Knockbacks 18 | . . . 8 6 . 1 3 . . . . . . . . . . . . . . . . . . . . . . . . . . . . Impact 1 | . . . 1 . . . . . . . . . . . . . . . . . . . . . . . . . . . . . . . . Kinetic 16 | . . . 7 5 . 1 3 . . . . . . . . . . . . . . . . . . . . . . . . . . . . Secondary 1 | . . . . 1 . . . . . . . . . . . . . . . . . . . . . . . . . . . . . . . Self-Inflicted Damage 337 | . 40 . . . . 85 . 5 . . . . 70 . . . . . . . . . . . 51 . . . 86 . . . . . . Shots 9 | . 1 . . . . 3 . 1 . . . . 2 . . . . . . . . . . . 1 . . . 1 . . . . . . Rammed 3 | . . . . . . . . . . . . . 3 . . . . . . . . . . . . . . . . . . . . . . Targets Rammed 7 | . . . 2 . . 2 . . . . . . 3 . . . . . . . . . . . . . . . . . . . . . . Kicked 4 | . . . 2 . . 2 . . . . . . . . . . . . . . . . . . . . . . . . . . . . . Crushed . | . . . . . . . . . . . . . . . . . . . . . . . . . . . . . . . . . . . . Highest Temperature 327 | 72 243 235 114 55 265 187 44 278 271 151 . 256 316 164 . . . . . 5 . 39 . . 277 242 . . 18 327 317 258 158 212 225 Average Temperature 68 | 32 42 117 23 29 115 49 12 88 107 73 . 83 70 74 . . . . . 3 . 22 . . 68 56 . . 7 69 86 70 91 111 79 Received Heat Transfer 3106 | . 156 40 408 51 . 288 819 522 . 60 . . 552 . . 6 . . 12 18 . . . . 27 21 . . 9 9 . 45 18 . 45 Effects 4 | . 1 . . . 1 . . . . . . . 1 . . . . . . . . . . . . 1 . . . . . . . . . Energy Bleed 3 | . . . . . 1 . . . . . . . 1 . . . . . . . . . . . . 1 . . . . . . . . . Interference 1 | . 1 . . . . . . . . . . . . . . . . . . . . . . . . . . . . . . . . . . Siege Activations . | . . . . . . . . . . . . . . . . . . . . . . . . . . . . . . . . . . . . Martial Activations . | . . . . . . . . . . . . . . . . . . . . . . . . . . . . . . . . . . . . Shielding Activations . | . . . . . . . . . . . . . . . . . . . . . . . . . . . . . . . . . . . . Robots Disrupted . | . . . . . . . . . . . . . . . . . . . . . . . . . . . . . . . . . . . . Combat Hostiles . | . . . . . . . . . . . . . . . . . . . . . . . . . . . . . . . . . . . . Robots Corrupted . | . . . . . . . . . . . . . . . . . . . . . . . . . . . . . . . . . . . . Combat Hostiles . | . . . . . . . . . . . . . . . . . . . . . . . . . . . . . . . . . . . . Parts Fried . | . . . . . . . . . . . . . . . . . . . . . . . . . . . . . . . . . . . . Impact Corruptions . | . . . . . . . . . . . . . . . . . . . . . . . . . . . . . . . . . . . . Robots Melted . | . . . . . . . . . . . . . . . . . . . . . . . . . . . . . . . . . . . . Combat Hostiles . | . . . . . . . . . . . . . . . . . . . . . . . . . . . . . . . . . . . . Parts Melted 3 | . 2 . . . . . . . . . . . 1 . . . . . . . . . . . . . . . . . . . . . . Heat Transferred 1745 | 222 999 . . . . . . . . . . . 487 . . . . . . . . . . . . . . . . . . 37 . . . Parts Sabotaged . | . . . . . . . . . . . . . . . . . . . . . . . . . . . . . . . . . . . . Parts Stolen . | . . . . . . . . . . . . . . . . . . . . . . . . . . . . . . . . . . . . Parts Stripped 14 | . . . . . . . . . . . . . . . . . . . . . . . . . . . . . . . . . . . 14 Power Chain Reactions 3 | . . . . . . . . . . . . . 3 . . . . . . . . . . . . . . . . . . . . . . Alert | -11 -10 -10 -9 -9 -9 -8 -8 -7 -7 -7 -7 -6 -6 -6 -6 -6 -6 -6 -5 -5 -5 -5 -5 -4 -4 -4 -4 -4 -4 -3 -3 -2 -2 -1 -1 ------- Run | Yrd Mat Min Mat Min Exi Min Mat Fac Low Low Dat Pro Fac Was Fac Low Low Zio Pro Fac Upp Upp Zhi Pro Fac Ext Cet Arc Hub Res Tes Res Qua Acc Com Maximum Alert Level 5 | . 1 . 2 1 . . . 1 . . . . 3 1 3 . . . . . . . . . . 2 2 1 3 2 1 . . . 5 Low Security (%) 65 | 100 99 100 35 80 . 100 100 44 . . . . 49 63 14 . . . . 100 . . . . 100 68 . 78 47 . 12 100 100 100 26 Level 1 18 | . . . 43 19 . . . 55 . . . . 20 36 18 . . . . . . . . . . 7 73 21 8 . 87 . . . 3 Level 2 8 | . . . 21 . . . . . . . . . 4 . 14 . . . . . . . . . . 23 26 . 29 100 . . . . 11 Level 3 5 | . . . . . . . . . . . . . 25 . 52 . . . . . . . . . . . . . 14 . . . . . 9 Level 4 . | . . . . . . . . . . . . . . . . . . . . . . . . . . . . . . . . . . . 18 Level 5 1 | . . . . . . . . . . . . . . . . . . . . . . . . . . . . . . . . . . . 29 High Security . | . . . . . . . . . . . . . . . . . . . . . . . . . . . . . . . . . . . . Max Security . | . . . . . . . . . . . . . . . . . . . . . . . . . . . . . . . . . . . . Peak Influence 1987 | 5 200 27 521 230 . 162 76 296 . . . . 863 283 929 . . . . 48 . . . . 94 616 458 273 923 696 305 123 79 80 1987 Initial 460 | . . 17 . 200 . . 51 . . . . . . 283 37 . . . . . . . . . . 22 328 167 . 460 305 123 15 47 44 Average 193 | . 98 5 272 123 . 57 11 151 . . . . 318 166 586 . . . . 8 . . . . 25 188 336 98 357 556 229 40 11 25 859 Influence Increases 15154 | 15 521 20 1131 61 . 183 368 756 100 30 . 135 1517 . 1539 115 90 . 204 348 60 135 15 . 419 1011 380 206 1368 363 249 380 187 150 3098 Destroy 0b10 Robot/C 5880 | . 320 . 580 40 . 120 200 480 80 20 . 100 600 . 680 60 80 . 140 20 . . . . 40 360 160 80 320 160 60 20 20 20 1120 Destroy 0b10 Robot/NC 730 | 15 20 . 70 10 . 5 30 55 5 . . . 60 . 40 . . . . 80 . . 15 . 65 40 5 20 30 25 10 35 5 5 85 Destroy Leader 1254 | . 78 . 186 10 . 20 70 100 10 10 . 20 150 . 148 10 10 . 20 26 . . . . 28 26 10 . 74 24 10 18 . 12 184 Allied During Kill 2781 | . . . . . . . . 2 5 . . 15 38 . 477 . . . 44 7 . . . . . 287 175 100 416 . 13 1 . 2 1199 Trap Triggered on 0b10 60 | . . . . . . . . . . . . . 20 . . . . . . . . . . . . 40 . . . . . . . . . Successful Hack 309 | . 59 . 52 . . . 40 . . . . . 57 . 42 . . . . 15 . . . . 32 . . . . . 6 6 . . . Disable Machine 780 | . . . 135 . . . 15 30 . . . . 105 . 90 . . . . . . . . . 30 15 . . 135 30 60 15 75 . 45 Destroy Structure 1685 | . 29 20 78 1 . 38 13 44 . . . . 57 . 47 . . . . 80 . . . . 104 168 30 6 288 94 60 150 42 36 300 Partial Spotted 510 | . . . . . . . . . . . . . . . 15 . . . . 60 . . . . 120 15 . . 30 15 30 60 45 60 60 Lose Combat Pursuer 765 | . 15 . 30 . . . . 45 . . . . 30 . . 45 . . . 60 60 135 . . . 60 . . 75 15 . 75 . 15 105 Active Sensor Use 400 | . . . . . . . . . . . . . 400 . . . . . . . . . . . . . . . . . . . . . . Influence Decreases 13150 | 15 476 65 616 563 13 51 499 461 396 20 10 135 708 756 720 413 190 474 204 316 92 20 130 . 372 472 548 624 490 698 572 572 136 159 1164 Entered New Map 3493 | . . 28 . 315 13 . 81 1 110 . 10 . . 526 16 323 110 474 . . 13 . 115 . . 25 258 251 . 418 238 97 13 32 26 Time Decay 7163 | 15 416 37 586 238 . 50 344 330 286 20 . 135 468 230 374 90 80 . 194 296 79 20 15 . 330 393 150 313 140 270 294 402 123 127 318 Lost Part 684 | . 60 . 30 10 . 1 20 130 . . . . 230 . 10 . . . 10 20 . . . . 10 . . . 50 10 20 33 . . 40 Lost Ally 1756 | . . . . . . . . . . . . . 10 . 320 . . . . . . . . . 32 54 140 60 300 . 20 40 . . 780 Purge Threat 54 | . . . . . . . 54 . . . . . . . . . . . . . . . . . . . . . . . . . . . . Squads Dispatched 101 | . 2 . 4 . . . . 7 . . . . 16 . 11 . . . . 8 . 1 . . 9 1 1 . 8 6 2 12 2 3 8 Investigation 17 | . . . 1 . . . . . . . . . 4 . 2 . . . . 1 . . . . 2 1 1 . . 1 . 2 1 . 1 Extermination 32 | . . . . . . . . 3 . . . . 5 . 1 . . . . 4 . . . . 4 . . . . 2 2 6 1 1 3 Reinforcement 39 | . 2 . 3 . . . . 4 . . . . 4 . 6 . . . . 3 . . . . 3 . . . 6 1 . 2 . 2 3 Assault 7 | . . . . . . . . . . . . . . . 1 . . . . . . 1 . . . . . . . 2 . 2 . . 1 Garrison 6 | . . . . . . . . . . . . . 3 . 1 . . . . . . . . . . . . . 2 . . . . . . Intercept . | . . . . . . . . . . . . . . . . . . . . . . . . . . . . . . . . . . . . Searches Triggered . | . . . . . . . . . . . . . . . . . . . . . . . . . . . . . . . . . . . . Data Miner Redirects 6 | . . . . . . . . . . . . . 2 . . . . . . . . . . . . . 1 . . . . 3 . . . Construction Impeded 7 | . . . . . . . . 2 . . . . 2 . 1 . . . . . . . . . . . . . 1 1 . . . . . Haulers Reinforced 6 | . . . . . . . . . . . . . . . 1 . . . . 3 . . . . 2 . . . . . . . . . . Active Scanning Responses 4 | . . . . . . . . . . . . . 4 . . . . . . . . . . . . . . . . . . . . . . Cargo Convoy Interrupts 2 | . . . . . . . . 1 . . . . . . . . . . . . . . . . . . . . . . . 1 . . . Stealth | -11 -10 -10 -9 -9 -9 -8 -8 -7 -7 -7 -7 -6 -6 -6 -6 -6 -6 -6 -5 -5 -5 -5 -5 -4 -4 -4 -4 -4 -4 -3 -3 -2 -2 -1 -1 --------- Run | Yrd Mat Min Mat Min Exi Min Mat Fac Low Low Dat Pro Fac Was Fac Low Low Zio Pro Fac Upp Upp Zhi Pro Fac Ext Cet Arc Hub Res Tes Res Qua Acc Com Distress Signals 47 | . 1 . 3 . . . 1 7 . . . . 2 . 2 . . . . . . . . . 1 3 2 . 1 . 2 5 . . 17 Communications Jammed 10 | . . . . . . . . . . . . . . . . . . . . . . . . . . . . . . . . 7 . 3 . Distress Signals 10 | . . . . . . . . . . . . . . . . . . . . . . . . . . . . . . . . 7 . 3 . Times Spotted 549 | . 23 16 47 2 . 6 11 43 8 2 . 5 37 1 13 6 4 . 5 16 15 11 . . 36 24 10 11 37 24 20 51 6 11 48 Peak Tracking Total 20 | . 6 20 6 2 . 6 4 11 4 1 . 4 5 1 4 4 4 . 5 2 7 11 . . 7 4 5 2 11 8 7 14 3 4 11 Tactical Retreats 54 | . 1 2 2 . . . . 2 . . . . 2 . . 2 . . . 4 4 1 . . 7 3 . . 3 3 3 11 . 1 3 Traps | -11 -10 -10 -9 -9 -9 -8 -8 -7 -7 -7 -7 -6 -6 -6 -6 -6 -6 -6 -5 -5 -5 -5 -5 -4 -4 -4 -4 -4 -4 -3 -3 -2 -2 -1 -1 ------- Run | Yrd Mat Min Mat Min Exi Min Mat Fac Low Low Dat Pro Fac Was Fac Low Low Zio Pro Fac Upp Upp Zhi Pro Fac Ext Cet Arc Hub Res Tes Res Qua Acc Com Traps Triggered 17 | . . . . . . . . . . . . . 2 . . . . . . . . . . . 4 5 . . 1 1 . 3 1 . . Indirectly 1 | . . . . . . . . . . . . . . . . . . . . . . . . . . . . . 1 . . . . . . Trap Hack Attempts 20 | . . . . . . . . . . . . . . . 2 . . . . 9 . . . . . 9 . . . . . . . . . Triggered 1 | . . . . . . . . . . . . . . . . . . . . 1 . . . . . . . . . . . . . . . Disarmed . | . . . . . . . . . . . . . . . . . . . . . . . . . . . . . . . . . . . . Reprogrammed 7 | . . . . . . . . . . . . . . . 1 . . . . 3 . . . . . 3 . . . . . . . . . Reused 9 | . . . . . . . . . . . . . 2 . . . . . . . 3 . . . . 4 . . . . . . . . . Traps Extracted 9 | . . . . . . . . . . . . . . . 1 . . . . 3 1 . . . . 4 . . . . . . . . . Installed 11 | . . . . . . . . . . . . . 3 . . . . . . . 3 . . . . 5 . . . . . . . . . Triggered 9 | . . . . . . . . . . . . . 2 . . . . . . . 3 . . . . 4 . . . . . . . . . Most Traps Carried 5 | . . . . . . . . . 3 3 3 3 3 . 1 1 1 1 1 3 3 1 1 1 4 5 5 5 3 3 3 3 3 . . Machines | -11 -10 -10 -9 -9 -9 -8 -8 -7 -7 -7 -7 -6 -6 -6 -6 -6 -6 -6 -5 -5 -5 -5 -5 -4 -4 -4 -4 -4 -4 -3 -3 -2 -2 -1 -1 ---------- Run | Yrd Mat Min Mat Min Exi Min Mat Fac Low Low Dat Pro Fac Was Fac Low Low Zio Pro Fac Upp Upp Zhi Pro Fac Ext Cet Arc Hub Res Tes Res Qua Acc Com Machines Disabled 54 | . . . 9 . . . 1 2 . 1 . . 7 . 6 . . . . . . . . . 2 1 1 . 9 2 4 1 5 . 3 Max in Single Turn 6 | . . . 4 . . . 1 1 . 1 . . 6 . 1 . . . . . . . . . 1 1 . . 6 1 1 1 1 . . Garrison Access 11 | . . . . . . . . . . . . . . . 2 . . . . 2 . . . . 2 . . . . 1 1 1 1 1 . Network Hub 1 | . . . . . . . . . . . . . . . . . . . . . . . . . . . . . 1 . . . . . . Machines Repaired . | . . . . . . . . . . . . . . . . . . . . . . . . . . . . . . . . . . . . Machines Dismantled . | . . . . . . . . . . . . . . . . . . . . . . . . . . . . . . . . . . . . Machines Sabotaged . | . . . . . . . . . . . . . . . . . . . . . . . . . . . . . . . . . . . . Overloaded Fab Kills . | . . . . . . . . . . . . . . . . . . . . . . . . . . . . . . . . . . . . Hacking | -11 -10 -10 -9 -9 -9 -8 -8 -7 -7 -7 -7 -6 -6 -6 -6 -6 -6 -6 -5 -5 -5 -5 -5 -4 -4 -4 -4 -4 -4 -3 -3 -2 -2 -1 -1 --------- Run | Yrd Mat Min Mat Min Exi Min Mat Fac Low Low Dat Pro Fac Was Fac Low Low Zio Pro Fac Upp Upp Zhi Pro Fac Ext Cet Arc Hub Res Tes Res Qua Acc Com Machines Accessed 98 | . 9 . 10 . 1 1 15 2 . 1 4 . 5 . 9 . 1 . . 5 . 1 7 . 10 2 1 . . 2 4 2 2 1 3 Terminals 39 | . 6 . 7 . . 1 11 1 . . . . 4 . 4 . . . . . . . . . . . 1 . . . . . 1 . 3 Fabricators 9 | . . . . . . . . . . . . . . . 2 . . . . 1 . . . . 3 . . . . . 1 2 . . . Repair Stations 9 | . 1 . 2 . . . 2 . . . . . . . . . . . . . . . . . 2 1 . . . . 1 . . . . Recycling Units 14 | . 2 . 1 . . . 2 1 . . . . 1 . 1 . . . . 1 . . . . 3 1 . . . 1 . . . . . Scanalyzers 1 | . . . . . . . . . . . . . . . . . . . . . . . . . . . . . . . 1 . . . . Garrison Access 11 | . . . . . . . . . . . . . . . 2 . . . . 3 . . . . 2 . . . . 1 1 . 1 1 . Total Hacks 309 | . 28 . 32 . 1 2 52 3 . 1 29 . 13 . 27 . 1 . . 10 . 1 46 . 21 8 3 . . 5 7 9 2 4 4 Successful 205 | . 15 . 17 . 1 1 32 2 . 1 29 . 4 . 14 . 1 . . 4 . 1 46 . 15 4 . . . 3 5 4 2 1 3 Failed 103 | . 13 . 15 . . 1 20 1 . . . . 9 . 12 . . . . 6 . . . . 6 4 3 . . 2 2 5 . 3 1 Catastrophic 8 | . . . . . . . 3 . . . . . 1 . 1 . . . . . . . . . . 1 1 . . 1 . . . . . Database Lockouts 1 | . . . . . . . . . . . . . . . 1 . . . . . . . . . . . . . . . . . . . . Manual 293 | . 13 . 19 . . . 28 . . . . . 7 . 14 . . . . 39 . . . . 47 17 1 . 5 18 17 24 10 9 25 Terminals 126 | . 23 . 25 . . 2 42 1 . . . . 9 . 16 . . . . . . . . . . . 3 . . . . . 1 . 4 Fabricators 27 | . . . . . . . . . . . . . . . 7 . . . . 1 . . . . 9 . . . . . 1 9 . . . Repair Stations 29 | . 2 . 6 . . . 8 . . . . . . . . . . . . . . . . . 4 6 . . . . 3 . . . . Recycling Units 26 | . 3 . 1 . . . 2 2 . . . . 4 . 1 . . . . 1 . . . . 6 2 . . . 4 . . . . . Scanalyzers 2 | . . . . . . . . . . . . . . . . . . . . . . . . . . . . . . . 2 . . . . Garrison Access 20 | . . . . . . . . . . . . . . . 3 . . . . 8 . . . . 2 . . . . 1 1 . 1 4 . Terminal Hacks 106 | . 3 . 3 . 1 1 11 . . 1 29 . 1 . 4 . 1 . . . . 1 46 . . . . . . . . . 1 . 3 Record 48 | . . . . . 1 . 1 . . . 11 . . . . . . . . . . . 34 . . . . . . . . . 1 . . Part Schematic 13 | . . . . . . . . . . . 8 . . . 1 . . . . . . . 4 . . . . . . . . . . . . Robot Schematic 7 | . . . . . . . . . . . 7 . . . . . . . . . . . . . . . . . . . . . . . . Robot Analysis 7 | . . . . . . . 3 . . . . . . . . . . . . . . . 4 . . . . . . . . . . . . Prototype ID Bank 7 | . . . . . . . . . . . 3 . . . . . . . . . . . 4 . . . . . . . . . . . . Open Door 4 | . . . . . . . . . . 1 . . . . . . 1 . . . . 1 . . . . . . . . . . . . 1 Branch Access Points 2 | . . . 1 . . . . . . . . . . . 1 . . . . . . . . . . . . . . . . . . . . Terminal Index 3 | . 1 . . . . . 2 . . . . . . . . . . . . . . . . . . . . . . . . . . . . Unreport Threat 1 | . . . . . . . 1 . . . . . . . . . . . . . . . . . . . . . . . . . . . . Locate Traps 6 | . 1 . 1 . . . 2 . . . . . 1 . 1 . . . . . . . . . . . . . . . . . . . . Dispatch Records 1 | . . . . . . 1 . . . . . . . . . . . . . . . . . . . . . . . . . . . . . Hauler Manifests 3 | . . . 1 . . . 1 . . . . . . . 1 . . . . . . . . . . . . . . . . . . . . Zone Layout 2 | . 1 . . . . . 1 . . . . . . . . . . . . . . . . . . . . . . . . . . . . Disengage Seal 2 | . . . . . . . . . . . . . . . . . . . . . . . . . . . . . . . . . . . 2 Fabricator Hacks 10 | . . . . . . . . . . . . . . . 4 . . . . . . . . . 3 . . . . . . 3 . . . Network Status 2 | . . . . . . . . . . . . . . . 1 . . . . . . . . . . . . . . . . 1 . . . Load Schematic 5 | . . . . . . . . . . . . . . . 2 . . . . . . . . . 2 . . . . . . 1 . . . Build 3 | . . . . . . . . . . . . . . . 1 . . . . . . . . . 1 . . . . . . 1 . . . Repair Station Hacks 20 | . 2 . 3 . . . 8 . . . . . . . . . . . . . . . . . 3 2 . . . . 2 . . . . Scan Component 12 | . 1 . 2 . . . 4 . . . . . . . . . . . . . . . . . 2 2 . . . . 1 . . . . Repair 8 | . 1 . 1 . . . 4 . . . . . . . . . . . . . . . . . 1 . . . . . 1 . . . . Recycling Unit Hacks 17 | . 3 . 1 . . . 2 2 . . . . . . 1 . . . . 1 . . . . 4 1 . . . 2 . . . . . Process 1 | . . . . . . . . . . . . . . . . . . . . . . . . . . . . . . 1 . . . . . Report Inventory 12 | . 2 . 1 . . . 2 1 . . . . . . 1 . . . . 1 . . . . 3 1 . . . . . . . . . Retrieve Matter 1 | . . . . . . . . . . . . . . . . . . . . . . . . . . . . . . 1 . . . . . Retrieve Components 3 | . 1 . . . . . . 1 . . . . . . . . . . . . . . . . 1 . . . . . . . . . . Scanalyzer 2 | . . . . . . . . . . . . . . . . . . . . . . . . . . . . . . . 2 . . . . Insert Component 1 | . . . . . . . . . . . . . . . . . . . . . . . . . . . . . . . 1 . . . . Analyze 1 | . . . . . . . . . . . . . . . . . . . . . . . . . . . . . . . 1 . . . . Garrison Access Hacks 10 | . . . . . . . . . . . . . . . 2 . . . . 2 . . . . 2 . . . . 1 1 . 1 1 . Seal Access 10 | . . . . . . . . . . . . . . . 2 . . . . 2 . . . . 2 . . . . 1 1 . 1 1 . Unauthorized Hacks 40 | . 7 . 10 . . . 11 . . . . . 3 . 3 . . . . 1 . . . . 3 1 . . . . . 1 . . . Terminals 33 | . 7 . 10 . . . 11 . . . . . 3 . 2 . . . . . . . . . . . . . . . . . . . . Assimilate 1 | . . . . . . . . . . . . . 1 . . . . . . . . . . . . . . . . . . . . . . Botnet 15 | . 2 . 5 . . . 5 . . . . . 1 . 2 . . . . . . . . . . . . . . . . . . . . Disrupt 1 | . . . . . . . . . . . . . 1 . . . . . . . . . . . . . . . . . . . . . . Operators 1 | . . . . . . . 1 . . . . . . . . . . . . . . . . . . . . . . . . . . . . Skim 15 | . 5 . 5 . . . 5 . . . . . . . . . . . . . . . . . . . . . . . . . . . . Fabricators 6 | . . . . . . . . . . . . . . . 1 . . . . 1 . . . . 3 . . . . . . 1 . . . Prioritize 3 | . . . . . . . . . . . . . . . 1 . . . . . . . . . 1 . . . . . . 1 . . . Liberate 2 | . . . . . . . . . . . . . . . . . . . . 1 . . . . 1 . . . . . . . . . . Recompile 1 | . . . . . . . . . . . . . . . . . . . . . . . . . 1 . . . . . . . . . . Repair Stations . | . . . . . . . . . . . . . . . . . . . . . . . . . . . . . . . . . . . . Recycling Units 1 | . . . . . . . . . . . . . . . . . . . . . . . . . . 1 . . . . . . . . . Mask 1 | . . . . . . . . . . . . . . . . . . . . . . . . . . 1 . . . . . . . . . Scanalyzers . | . . . . . . . . . . . . . . . . . . . . . . . . . . . . . . . . . . . . Garrison Access . | . . . . . . . . . . . . . . . . . . . . . . . . . . . . . . . . . . . . Data Cores Recovered 5 | . . . 1 . . . . . . . . . 1 . 1 . . . . 1 . . . . . . . . . . . 1 . . . Used 1 | . . . . . . . . . . . . . . . 1 . . . . . . . . . . . . . . . . . . . . Hacking Detections 62 | . 7 . 9 . . 1 12 2 . . . . 5 . 8 . . . . 4 . . . . 6 1 1 . . 1 2 2 . 1 . Full Trace Events 6 | . . . 1 . . . . . . . . . . . 2 . . . . . . . . . . 1 1 . . . . 1 . . . Feedback Events 2 | . . . 1 . . . . . . . . . . . 1 . . . . . . . . . . . . . . . . . . . . Corruption 2 | . . . 1 . . . . . . . . . . . 1 . . . . . . . . . . . . . . . . . . . . Feedback Blocked . | . . . . . . . . . . . . . . . . . . . . . . . . . . . . . . . . . . . . Robot Schematics Acquired 31 | . . . . . . . . . . . 7 . . . . . . 3 . 8 . . . . 3 . . . . . . . . . 10 Robots Built . | . . . . . . . . . . . . . . . . . . . . . . . . . . . . . . . . . . . . Authchips . | . . . . . . . . . . . . . . . . . . . . . . . . . . . . . . . . . . . . Time . | . . . . . . . . . . . . . . . . . . . . . . . . . . . . . . . . . . . . Total Robot Build Rating . | . . . . . . . . . . . . . . . . . . . . . . . . . . . . . . . . . . . . Part Schematics Acquired 113 | . . . . . . . . . . . 8 . . . 1 . . 16 . . . . 4 . 33 . . . . 25 1 16 9 . . Parts Built 4 | . . . . . . . . . . . . . . . 2 . . . . . . . . . 1 . . . . . . 1 . . . Authchips 1 | . . . . . . . . . . . . . . . . . . . . . . . . . 1 . . . . . . . . . . Time 144 | . . . . . . . . . . . . . . . 47 . . . . . . . . . 46 . . . . . . 51 . . . Total Part Build Rating 25 | . . . . . . . . . . . . . . . 10 . . . . . . . . . 7 . . . . . . 8 . . . Parts Repaired 8 | . 1 . 1 . . . 4 . . . . . . . . . . . . . . . . . 1 . . . . . 1 . . . . Time 316 | . 16 . 38 . . . 129 . . . . . . . . . . . . . . . . . 44 . . . . . 89 . . . . Parts Recycled . | . . . . . . . . . . . . . . . . . . . . . . . . . . . . . . . . . . . . Recycled Matter 27 | . . . . . . . . . . . . . . . . . . . . . . . . . . . . . . 27 . . . . . Retrieved Matter 27 | . . . . . . . . . . . . . . . . . . . . . . . . . . . . . . 27 . . . . . Retrieved Components 13 | . 1 . . . . . . 9 . . . . . . . . . . . . . . . . 3 . . . . . . . . . . Parts Scanalyzed 1 | . . . . . . . . . . . . . . . . . . . . . . . . . . . . . . . 1 . . . . Part Schematics Acquired 1 | . . . . . . . . . . . . . . . . . . . . . . . . . . . . . . . 1 . . . . Parts Damaged . | . . . . . . . . . . . . . . . . . . . . . . . . . . . . . . . . . . . . Bothacking | -11 -10 -10 -9 -9 -9 -8 -8 -7 -7 -7 -7 -6 -6 -6 -6 -6 -6 -6 -5 -5 -5 -5 -5 -4 -4 -4 -4 -4 -4 -3 -3 -2 -2 -1 -1 ------------ Run | Yrd Mat Min Mat Min Exi Min Mat Fac Low Low Dat Pro Fac Was Fac Low Low Zio Pro Fac Upp Upp Zhi Pro Fac Ext Cet Arc Hub Res Tes Res Qua Acc Com Used RIF Installer . | . . . . . . . . . . . . . . . . . . . . . . . . . . . . . . . . . . . . Robots Hacked 11 | . . . 1 . . . . . . . . . . . . . . 3 . 6 . . . . 1 . . . . . . . . . . Non-combat 9 | . . . 1 . . . . . . . . . . . . . . 1 . 6 . . . . 1 . . . . . . . . . . Combat 2 | . . . . . . . . . . . . . . . . . . 2 . . . . . . . . . . . . . . . . . Robot Hacks Applied 13 | . . . 2 . . . . . . . . . . . . . . 3 . 7 . . . . 1 . . . . . . . . . . parse_system 3 | . . . . . . . . . . . . . . . . . . 3 . . . . . . . . . . . . . . . . . no_distress 8 | . . . 2 . . . . . . . . . . . . . . . . 5 . . . . 1 . . . . . . . . . . find_chute 1 | . . . . . . . . . . . . . . . . . . . . 1 . . . . . . . . . . . . . . . find_fabricator 1 | . . . . . . . . . . . . . . . . . . . . 1 . . . . . . . . . . . . . . . Relay Couplers Released 5 | . . . . . . . . 4 . . . . . . . . . . . . . . . . . . . . . . . 1 . . . Machine Destruction 1 | . . . . . . . . . . . . . . . . . . . . . . . . . . . . . . . . 1 . . . Programmers 4 | . . . . . . . . 4 . . . . . . . . . . . . . . . . . . . . . . . . . . . Fabnet Peak Effective % . | . . . . . . . . . . . . . . . . . . . . . . . . . . . . . . . . . . . . Robots Rewired 14 | . . . . . . . . 1 . 2 . . . . . . . . . . . . . . . 10 . . . . 1 . . . . Allies Hacked 4 | . . . . . . . . . . 1 . . . . 1 . . . . . . . . . . . . . . . 1 . . . 1 Hacks Repelled . | . . . . . . . . . . . . . . . . . . . . . . . . . . . . . . . . . . . . Allies | -11 -10 -10 -9 -9 -9 -8 -8 -7 -7 -7 -7 -6 -6 -6 -6 -6 -6 -6 -5 -5 -5 -5 -5 -4 -4 -4 -4 -4 -4 -3 -3 -2 -2 -1 -1 -------- Run | Yrd Mat Min Mat Min Exi Min Mat Fac Low Low Dat Pro Fac Was Fac Low Low Zio Pro Fac Upp Upp Zhi Pro Fac Ext Cet Arc Hub Res Tes Res Qua Acc Com Total Allies 127 | . . . . . . . . 1 . 2 . 1 1 20 . . . 4 . . . . . . 4 27 5 . 6 . 1 2 . 2 51 Largest Group 25 | . . . . . . . . 1 1 2 . 1 2 20 19 . . 4 4 2 . . . . 4 22 19 15 15 . 1 2 . 2 25 Highest-Rated Group 2953 | . . . . . . . . 34 34 34 . 96 117 697 665 . . 157 157 79 . . . . 168 1186 1105 946 1193 . 163 162 . 244 2953 Highest-Rated Ally 269 | . . . . . . . . 34 34 34 . 96 96 50 50 . . 42 42 42 . . . . 47 159 159 96 96 . 163 81 . 122 269 Zionite Dispatches 12 | . . . . . . . . . . . . . . . . . . . . . . . . . 1 7 . . 2 . . 1 . 1 . Heavy 3 | . . . . . . . . . . . . . . . . . . . . . . . . . . 2 . . . . . . . 1 . Light 2 | . . . . . . . . . . . . . . . . . . . . . . . . . . . . . 2 . . . . . . Fire 1 | . . . . . . . . . . . . . . . . . . . . . . . . . . 1 . . . . . . . . . Hacker 2 | . . . . . . . . . . . . . . . . . . . . . . . . . . 1 . . . . . 1 . . . Explosive Resupply 1 | . . . . . . . . . . . . . . . . . . . . . . . . . . 1 . . . . . . . . . Trap Resupply 2 | . . . . . . . . . . . . . . . . . . . . . . . . . 1 1 . . . . . . . . . Offense Resupply 1 | . . . . . . . . . . . . . . . . . . . . . . . . . . 1 . . . . . . . . . Total Orders 12 | . . . . . . . . . . . . . . . . . . . . . . . . . 2 6 . 1 1 . . . . . 2 STAY 5 | . . . . . . . . . . . . . . . . . . . . . . . . . 1 3 . . . . . . . . 1 FOLLOW 2 | . . . . . . . . . . . . . . . . . . . . . . . . . . . . . 1 . . . . . 1 AID 1 | . . . . . . . . . . . . . . . . . . . . . . . . . . . . 1 . . . . . . . DROP 4 | . . . . . . . . . . . . . . . . . . . . . . . . . 1 3 . . . . . . . . . Ally Attacks 1029 | . . . . . . . . 1 9 8 . 1 15 16 288 . . . 25 2 . . . . 9 105 57 22 112 . 3 4 . . 352 Total Damage 45844 | . . . . . . . . 123 991 98 . 47 436 322 5342 . . . 684 60 . . . . 231 4437 1977 923 3415 . 152 13 . . 26593 Kills 188 | . . . . . . . . 1 7 1 . 1 6 1 40 . . . 8 1 . . . . 1 21 10 4 20 . 3 . . . 63 Allies Corrupted 9 | . . . . . . . . . . . . . 1 . . . . . 1 . . . . . . . . . . . 1 . . 2 4 Allies Melted . | . . . . . . . . . . . . . . . . . . . . . . . . . . . . . . . . . . . . Intel | -11 -10 -10 -9 -9 -9 -8 -8 -7 -7 -7 -7 -6 -6 -6 -6 -6 -6 -6 -5 -5 -5 -5 -5 -4 -4 -4 -4 -4 -4 -3 -3 -2 -2 -1 -1 ------- Run | Yrd Mat Min Mat Min Exi Min Mat Fac Low Low Dat Pro Fac Was Fac Low Low Zio Pro Fac Upp Upp Zhi Pro Fac Ext Cet Arc Hub Res Tes Res Qua Acc Com Active Infowar (turns) 24093 | 23 397 129 967 358 616 120 2491 937 820 831 190 648 2904 1 840 181 174 481 784 1350 324 111 83 174 1660 1242 313 962 282 594 658 1169 329 348 602 Optics 12660 | . . . . . . . . . . . . . . . 839 181 174 481 784 1350 324 111 83 174 1660 1242 313 962 282 594 658 1169 329 348 602 Sensors 13446 | . . . . . . . 1205 787 . . . . . . 474 181 174 481 784 1348 324 111 83 174 1660 1080 313 962 282 594 653 1096 329 348 3 A.S.S. 5543 | . . . . . . . . 150 820 831 190 648 2904 . . . . . . . . . . . . . . . . . . . . . . Terrain 334 | . . . . . . . . . . . . . 273 . 61 . . . . . . . . . . . . . . . . . . . . Traps 4012 | . . . . . . . . 248 . . . . . . 829 181 174 481 784 1203 112 . . . . . . . . . . . . . . Seismic 3896 | 23 397 129 967 358 616 120 1286 . . . . . . . . . . . . . . . . . . . . . . . . . . . . Cloaking 1 | . . . . . . . . . . . . . . 1 . . . . . . . . . . . . . . . . . . . . . Jamming 1338 | . . . . . . . . . . . . . . . 1 . . . . . . . . . . . . . . . . 479 329 348 181 ECM 2997 | . . . . . . . . . . . . . . . 218 . . . . 84 125 2 . . 1464 79 . . . 96 422 507 . . . Robot Analysis Total 7 | . . . . . . . 3 . . . . . . . . . . . . . . . 4 . . . . . . . . . . . . Derelict Logs Recovered 7 | . . 1 . 2 . . . . 1 . . . . . . 1 . . 1 . . 1 . . . . . . . . . . . . . Drone Launches . | . . . . . . . . . . . . . . . . . . . . . . . . . . . . . . . . . . . . Drone Recoveries . | . . . . . . . . . . . . . . . . . . . . . . . . . . . . . . . . . . . . Zionite Intel Received 46 | . . . . . . . . . . . . . . . . . . . . 11 . . . . 10 . . . . 4 5 5 3 1 7 Main Access 4 | . . . . . . . . . . . . . . . . . . . . . . . . . . . . . . . . 1 1 1 1 Branch Access 2 | . . . . . . . . . . . . . . . . . . . . 1 . . . . 1 . . . . . . . . . . Emergency Access 4 | . . . . . . . . . . . . . . . . . . . . 1 . . . . . . . . . 1 . 1 . . 1 Guard Positions 3 | . . . . . . . . . . . . . . . . . . . . . . . . . . . . . . 1 . 1 . . 1 Component Stockpiles 2 | . . . . . . . . . . . . . . . . . . . . 1 . . . . . . . . . . . 1 . . . Prototype Stockpiles 4 | . . . . . . . . . . . . . . . . . . . . 1 . . . . 1 . . . . . 1 . 1 . . Component Schematics 3 | . . . . . . . . . . . . . . . . . . . . . . . . . 1 . . . . 1 . 1 . . . Prototype Schematics 4 | . . . . . . . . . . . . . . . . . . . . . . . . . 2 . . . . 1 . . 1 . . Unaware Schematics 5 | . . . . . . . . . . . . . . . . . . . . 2 . . . . 1 . . . . . . . . . 2 Unaware Analyses 6 | . . . . . . . . . . . . . . . . . . . . 1 . . . . 2 . . . . . 2 . . . 1 Trap Installations 3 | . . . . . . . . . . . . . . . . . . . . 1 . . . . . . . . . . 1 . . . 1 Active Terminals 2 | . . . . . . . . . . . . . . . . . . . . 1 . . . . 1 . . . . . . . . . . Active Garrisons 2 | . . . . . . . . . . . . . . . . . . . . 1 . . . . . . . . . . 1 . . . . Depthwide Sectors/-1 2 | . . . . . . . . . . . . . . . . . . . . 1 . . . . 1 . . . . . . . . . . Exploration | -11 -10 -10 -9 -9 -9 -8 -8 -7 -7 -7 -7 -6 -6 -6 -6 -6 -6 -6 -5 -5 -5 -5 -5 -4 -4 -4 -4 -4 -4 -3 -3 -2 -2 -1 -1 ------------- Run | Yrd Mat Min Mat Min Exi Min Mat Fac Low Low Dat Pro Fac Was Fac Low Low Zio Pro Fac Upp Upp Zhi Pro Fac Ext Cet Arc Hub Res Tes Res Qua Acc Com Turns Passed 29165 | 122 1101 186 3045 504 616 202 2831 1710 820 831 190 648 2964 488 868 181 174 481 784 1350 324 111 83 174 1660 1242 313 962 282 594 658 1169 329 348 820 Spaces Moved 26853 | 67 588 90 1212 241 325 64 1088 529 304 303 96 317 1228 434 1656 389 400 812 554 2147 659 337 194 459 2809 1297 180 149 543 1238 1044 2326 679 722 1373 Core 130 | 7 . . . . . . 3 1 . . . . 88 31 . . . . . . . . . . . . . . . . . . . . . Treads 64 | . . . . . . . . . . . . . . 64 . . . . . . . . . . . . . . . . . . . . . Legs 6353 | 60 588 90 1212 241 325 64 1085 528 304 303 96 317 1140 . . . . . . . . . . . . . . . . . . . . . . Wheels . | . . . . . . . . . . . . . . . . . . . . . . . . . . . . . . . . . . . . Hover 16 | . . . . . . . . . . . . . . 16 . . . . . . . . . . . . . . . . . . . . . Flight 20290 | . . . . . . . . . . . . . . 323 1656 389 400 812 554 2147 659 337 194 459 2809 1297 180 149 543 1238 1044 2326 679 722 1373 Fastest Speed 14 | 50 120 190 190 190 190 190 190 190 190 193 193 193 50 35 35 35 35 35 34 28 28 21 24 24 15 15 25 25 21 17 15 16 14 14 14 Average Speed 70 | 112 154 190 204 190 190 249 225 261 259 248 193 193 182 64 35 35 35 35 34 29 28 27 26 24 24 26 25 25 26 26 22 23 26 25 24 Slowest Speed 1250 | 120 260 190 260 190 190 470 950 1250 260 260 193 193 260 160 39 35 35 35 39 34 28 28 97 24 98 101 25 25 30 30 28 27 96 26 101 Overloaded Moves 944 | . . . . . . . . . . . . . . . . . . . . . . 13 . . 125 16 . . 81 59 36 477 12 34 91 Propulsion Burnouts 1 | . . . . . . . . . . . . . . . . . . . . . . . . . . . . . . . . 1 . . . Robots Hopped 108 | . . . . . . . . . . . . . . 2 3 . . . . 6 1 . . 1 17 3 . . 5 9 10 43 1 1 6 Potential Cave-ins 2 | . . . . . . . . . . . . . . . . . . . . . . . . . . . . . . . . . 2 . . Cave-ins Triggered 1 | . 1 . . . . . . . . . . . . . . . . . . . . . . . . . . . . . . . . . . Teleports 1 | . . . . . . . . . . . . . . . . . . . . . . . . . . . . . 1 . . . . . . Exploration Rate (%) 57 | 4 85 40 96 52 83 18 89 16 49 42 71 52 27 95 45 63 61 90 61 56 61 57 63 54 63 88 59 81 40 30 92 65 61 17 44 Regions Visited 35 Branch Regions 23 Pre-discovered Areas 19 | . . . . . . . 2 . . . 1 . . . . . . . . 9 . . 3 . 4 . . . . . . . . . . Known Exits Taken 30 | . 1 1 1 . . 1 1 1 1 1 1 1 . . 1 1 1 1 1 1 1 1 1 1 1 1 1 1 1 1 1 1 1 1 . Unknown Exits Taken 3 | 1 . . . 1 1 . . . . . . . . . . . . . . . . . . . . . . . . . . . . . . Scrap Searched 16 | . . . . . . . . . 3 1 . 3 . . . 2 1 2 1 . 1 1 . 1 . . . . . . . . . . . Spaces Dug 302 | . . . 6 1 . . 4 . . . . . 28 . 15 3 . . 19 39 15 5 . 4 38 5 . . 2 11 24 44 15 12 12 Terrain Destroyed 932 | . 36 25 95 1 . 53 11 35 3 . . . 49 . 19 31 22 . 19 40 15 5 . 4 55 76 . . 174 52 24 49 15 12 12 Melee 272 | . . . 6 . . . 4 . . . . . 28 . 15 2 . . 18 37 6 2 . 4 38 5 . . 2 8 23 41 10 12 11 Projectile 48 | . . . 6 1 . . 1 2 3 . . . 5 . . 1 . . 1 3 9 3 . . . . . . . 3 1 3 5 . 1 AOE 612 | . 36 25 83 . . 53 6 33 . . . . 16 . 4 28 22 . . . . . . . 17 71 . . 172 41 . 5 . . . Terrain Rammed . | . . . . . . . . . . . . . . . . . . . . . . . . . . . . . . . . . . . . Walls Destroyed . | . . . . . . . . . . . . . . . . . . . . . . . . . . . . . . . . . . . . Machines Disabled . | . . . . . . . . . . . . . . . . . . . . . . . . . . . . . . . . . . . . Actions | -11 -10 -10 -9 -9 -9 -8 -8 -7 -7 -7 -7 -6 -6 -6 -6 -6 -6 -6 -5 -5 -5 -5 -5 -4 -4 -4 -4 -4 -4 -3 -3 -2 -2 -1 -1 --------- Run | Yrd Mat Min Mat Min Exi Min Mat Fac Low Low Dat Pro Fac Was Fac Low Low Zio Pro Fac Upp Upp Zhi Pro Fac Ext Cet Arc Hub Res Tes Res Qua Acc Com Total 35204 | 88 689 99 1580 271 324 93 1360 718 328 359 101 335 1747 633 1876 423 429 1007 1113 2745 776 346 217 515 3641 2160 440 1050 661 1447 1409 2810 794 851 1769 Wait 6437 | . 23 1 187 16 . 15 129 41 14 26 . 9 323 175 136 25 21 190 534 466 92 2 . 54 719 706 238 882 96 159 309 383 59 109 298 Move 26616 | 66 587 89 1211 240 324 63 1087 528 303 302 95 316 1228 429 1649 388 399 811 553 2134 656 336 193 456 2776 1290 179 148 532 1219 1023 2250 676 719 1361 Hop 94 | . . . . . . . . . . . . . . 2 3 . . . . 6 1 . . 1 15 3 . . 5 9 10 32 1 1 5 Pick Up 172 | 4 11 1 20 2 . . 22 18 1 5 . . 15 2 6 . . 1 . 7 . . 2 . 9 2 3 2 3 6 6 13 4 . 7 Fast Attach 173 | 6 2 . 10 1 . . 19 7 . . 3 . 11 12 12 . 2 . 2 10 1 . 8 . 8 8 5 . 3 6 6 8 8 2 13 Attach 99 | 1 4 . 4 . . 1 10 13 . . . 1 15 . 2 . . . . 3 . . . . 4 7 . . 4 6 3 10 . 1 10 Detach 43 | . . . 2 . . . 3 3 . . . . 1 . 1 . . . . 3 . . . . 3 10 1 . 3 3 . 3 1 1 5 Swap 228 | . 11 4 24 1 . 2 15 12 6 1 . 1 30 2 8 2 2 . . 12 9 4 . . 12 24 2 1 2 4 6 18 9 . 4 Drop 209 | . 3 . 17 2 . . 20 12 1 6 3 . 7 9 17 . 2 1 1 11 1 . 8 . 9 9 7 2 4 5 7 13 12 1 19 Fire 443 | 11 48 4 86 7 . 10 51 76 3 13 . 8 67 . . 6 3 . 4 3 7 2 . . 1 7 . . 2 10 3 4 6 . 1 Melee 558 | . . . 17 2 . . 4 . . . . . 44 2 40 2 . 4 19 81 6 2 6 4 75 25 5 15 7 20 35 62 18 17 46 Ram 3 | . . . . . . . . . . . . . 3 . . . . . . . . . . . . . . . . . . . . . . Kick 4 | . . . 2 . . 2 . . . . . . . . . . . . . . . . . . . . . . . . . . . . . Crush . | . . . . . . . . . . . . . . . . . . . . . . . . . . . . . . . . . . . . Escape Stasis 79 | . . . . . . . . . . . . . . . . . . . . . . . . . 10 55 . . . . . 14 . . . Rewire 15 | . . . . . . . . 8 . 6 . . . . . . . . . . . . . . . . . . . . 1 . . . . Trap 31 | . . . . . . . . . . . . . 3 . 2 . . . . 9 3 . . . . 14 . . . . . . . . . Miscellaneous . | . . . . . . . . . . . . . . . . . . . . . . . . . . . . . . . . . . . . Route ------- -11/Scrapyard -10/Materials (discovered 5 exits: *Mat x3 / *Min x2) -10/Mines (discovered 3 exits: *Mat x2 / Sub) -9/Materials (discovered 4 exits: *Mat x3 / *Min) -9/Mines (discovered 2 exits: Mat / *Exi) -9/Exiles -8/Mines -8/Materials (discovered 4 exits: *Fac x3 / [*Sto]) -7/Factory (discovered 2 exits: *Fac / *Low) -7/Lower Caves -7/Lower Caves (discovered 2 exits: Fac / *Dat) -7/Data Miner -6/Proximity Caves -6/Factory -6/Waste -6/Factory (discovered 3 exits: *Fac / *Low x2) -6/Lower Caves -6/Lower Caves -6/Zion -5/Proximity Caves -5/Factory (discovered 4 exits: *Fac x2 / *Upp x2) -5/Upper Caves -5/Upper Caves (discovered 2 exits: *Fac / *Zhi) -5/Zhirov -4/Proximity Caves -4/Factory (discovered 8 exits: *Res x4 / Upp x2 / *Ext x2) -4/Extension (discovered 2 exits: *Res / *Cet) -4/Cetus -4/Archives (discovered 3 exits: *Res / *Hub x2) -4/Hub_04(d) -3/Research (discovered 3 exits: *Res x2 / *Tes) -3/Testing -2/Research (discovered 4 exits: *Acc x3 / *Qua) -2/Quarantine -1/Access (discovered 2 exits: Sur / *Com) -1/Command (discovered 2 exits: *Sur x2) To Fleet Rendezvous History --------- Turn | Location | Event 3 | -11/Scrapyard | Discovered new exit (range 15) 123 | -11/Scrapyard | Entered Materials 314 | -10/Materials | Build established: Mutant 364 | -10/Materials | Discovered new exit (range 16) 547 | -10/Materials | Identified exit to Mines 547 | -10/Materials | Identified exit to Materials 614 | -10/Materials | Learned location of 1 exit from Storage 716 | -10/Materials | Learned location of 2 exits from Mines 723 | -10/Materials | Derelicts attacked the area 751 | -10/Materials | Loaded intel: 32 non-interactive machine locations 774 | -10/Materials | Loaded intel: 11 trap records 792 | -10/Materials | Crushed by falling debris 792 | -10/Materials | Core integrity fell below 50% 847 | -10/Materials | Learned location of 1 exit from Storage 942 | -10/Materials | Discovered exit to Mines (range 13) 1103 | -10/Materials | Repaired Mni. Grenade Launcher 1224 | -10/Materials | Entered Mines 1225 | -10/Mines | Assembled infested the area 1226 | -10/Mines | Identified exit to Subcaves 1331 | -10/Mines | Learned 2 Materials zone layouts 1410 | -10/Mines | Entered Materials 1410 | -9/Materials | Evolved 2 slots: Propulsion x1, Weapon x1 1903 | -9/Materials | Discovered new exit (range 16) 1948 | -9/Materials | Identified exit to Mines 2398 | -9/Materials | Learned 2 Storage zone layouts 2423 | -9/Materials | Discovered new exit (range 3) 2431 | -9/Materials | Learned location of 1 exit from Storage 2456 | -9/Materials | Learned 4 Materials zone layouts 2472 | -9/Materials | Loaded intel: 17 interactive machine locations 2476 | -9/Materials | Identified exit to Materials 2491 | -9/Materials | Learned Storage trap positions 2688 | -9/Materials | Build established: Scavenger-Mutant 2943 | -9/Materials | Repaired Katana 4455 | -9/Materials | Entered Mines 4599 | -9/Mines | Learned Materials terminal intel 4697 | -9/Mines | Found a Scrap Suit stashed away for nefarious purposes 4839 | -9/Mines | Learned Materials emergency access door positions 4950 | -9/Mines | Deemed a non-threat by the Exiles lab entrance 4952 | -9/Mines | Discovered new exit (range 5) 4959 | -9/Mines | Entered Exiles 4959 | -9/Exiles | Found Exiles lab abandoned 5558 | -9/Exiles | Discovered new exit (range 10) 5575 | -9/Exiles | Entered Mines 5663 | -8/Mines | Discovered exit to Materials (range 8) 5686 | -8/Mines | Core integrity fell below 50% 5728 | -8/Mines | Lost 4 parts (1p2n1w) 5777 | -8/Mines | Entered Materials 5777 | -8/Materials | Evolved 2 slots: Utility x2 5777 | -8/Materials | Discovered new exit (range 7) 5778 | -8/Materials | Identified exit to Factory 5780 | -8/Materials | Loaded intel: 12 terminal locations 5994 | -8/Materials | Build established: Mutant 6056 | -8/Materials | Core integrity fell below 50% 6083 | -8/Materials | Lost 8 parts (1n3u4w) 6233 | -8/Materials | Repaired Imp. Assault Rifle 6260 | -8/Materials | Repaired Aluminum Leg 6351 | -8/Materials | Lost 3 parts (1p1u1w) 6676 | -8/Materials | Build established: Scavenger-Tank 7081 | -8/Materials | Discovered exit to Factory (range 13) 7468 | -8/Materials | Met 7R-MNS 7688 | -8/Materials | Build established: Scavenger-Skirmisher 7745 | -8/Materials | Learned Storage emergency access door positions 7859 | -8/Materials | Learned 8 Factory zone layouts 7899 | -8/Materials | Learned Factory emergency access door positions 7931 | -8/Materials | Learned Factory repair station intel 7953 | -8/Materials | Learned Factory stockpile data 7987 | -8/Materials | Learned location of 2 exits from Lower Caves 8042 | -8/Materials | Discovered exit to Factory (range 3) 8316 | -8/Materials | Repaired Aluminum Leg 8344 | -8/Materials | Repaired Aluminum Leg 8582 | -8/Materials | Build established: Skirmisher 8608 | -8/Materials | Entered Factory 8608 | -7/Factory | Evolved 2 slots: Utility x2 8609 | -7/Factory | Caught up to 7R-MNS 8612 | -7/Factory | Loaded intel: 6 repair station locations 9206 | -7/Factory | Discovered new exit (range 16) 9221 | -7/Factory | Cargo convoy interrupted 9283 | -7/Factory | Destroyed 9 combat bots 9319 | -7/Factory | Lost 7 parts (1p3n1u2w) 9356 | -7/Factory | Core integrity fell below 50% 9555 | -7/Factory | Discovered new exit (range 3) 9561 | -7/Factory | Identified exit to Lower Caves 9859 | -7/Factory | Build established: Scavenger-Tank 10144 | -7/Factory | Lost 4 parts (1p1n2u) 10168 | -7/Factory | Found Prototype Device 10168 | -7/Factory | Identified Active Sensor Suite 10318 | -7/Factory | Entered Lower Caves 10318 | -7/Lower Caves | Accompanied by 1 ally 10319 | -7/Lower Caves | Identified exit to Lower Caves 10321 | -7/Lower Caves | Ambushed by wild Derelicts 10466 | -7/Lower Caves | Build established: Scavenger-Skirmisher 10706 | -7/Lower Caves | Learned Factory garrison access intel 11138 | -7/Lower Caves | Entered another Lower Caves area 11138 | -7/Lower Caves | Accompanied by 1 ally 11139 | -7/Lower Caves | Encountered a Warlord checkpoint 11139 | -7/Lower Caves | Identified exit to Factory 11247 | -7/Lower Caves | Attacked by a delusional Derelict stockpiling Unaware 11805 | -7/Lower Caves | Found DCF Scrap (11 items) 11892 | -7/Lower Caves | System corruption reached 10% 11927 | -7/Lower Caves | Discovered new exit (range 12) 11946 | -7/Lower Caves | Identified exit to Data Miner 11969 | -7/Lower Caves | Entered Data Miner 11971 | -7/Data Miner | Discovered new exit (range 6) 12008 | -7/Data Miner | Met Data Miner 12056 | -7/Data Miner | Learned location of Section 7 (-2) 12056 | -7/Data Miner | Acquired the access code to Warlord's prototype stash 12083 | -7/Data Miner | Received God Mode back door access code from Data Miner 12157 | -7/Data Miner | Identified exit to Proximity Caves 12159 | -7/Data Miner | Entered Proximity Caves 12425 | -6/Proximity Caves | Escorted by Enhanced Grunt 12437 | -6/Proximity Caves | Build established: Skirmisher 12683 | -6/Proximity Caves | Discovered exit to Factory (range 12) 12807 | -6/Proximity Caves | Entered Factory 12807 | -6/Factory | Accompanied by 1 ally 12807 | -6/Factory | Evolved 2 slots: Propulsion x1, Utility x1 12808 | -6/Factory | Loaded intel: 4 garrison access locations 13672 | -6/Factory | Incoming investigation squad redirected 14066 | -6/Factory | Build established: Scavenger-Assassin 14913 | -6/Factory | Destroyed 8 combat bots 15017 | -6/Factory | Incoming investigation squad redirected 15151 | -6/Factory | Lost 3 parts (1p2n) 15220 | -6/Factory | Garrison activated, responded to threat 15312 | -6/Factory | Lost 10 parts (4n2u4w) 15686 | -6/Factory | Discovered new exit (range 13) 15717 | -6/Factory | Released all parts (7) 15758 | -6/Factory | Lost 7 parts (1p1n3u2w) 15771 | -6/Factory | Sucked down chute 15771 | -6/Factory | Entered Waste 15772 | -6/Waste | Joined by Warlord forces that had cleared the area 16013 | -6/Waste | Build established: Mutant 16082 | -6/Waste | Discovered new exit (range 16) 16171 | -6/Waste | A Compactor rumbled back to life 16171 | -6/Waste | Spotted C-40 Crusher 16173 | -6/Waste | Allies destroyed C-40 Crusher 16259 | -6/Waste | Entered Factory 16259 | -6/Factory | Accompanied by 19 allies 16437 | -6/Factory | Central database locked down 16514 | -6/Factory | Spotted B-75 Beast 16533 | -6/Factory | Garrison activated, responded to threat 16603 | -6/Factory | Lost 8 allies 16609 | -6/Factory | First assault squad dispatched 16697 | -6/Factory | Discovered new exit (range 4) 16698 | -6/Factory | Identified exit to Factory 16906 | -6/Factory | Identified exit to Lower Caves 16945 | -6/Factory | Build established: Hacker-Scout 17017 | -6/Factory | Fabricated Adv. Sensor Array? 17127 | -6/Factory | Entered Lower Caves 17229 | -6/Lower Caves | Learned Factory stockpile data 17230 | -6/Lower Caves | Attracted the attention of an 0b10 checkpoint 17307 | -6/Lower Caves | Discovered new exit (range 4) 17308 | -6/Lower Caves | Identified exit to Lower Caves 17308 | -6/Lower Caves | Entered another Lower Caves area 17472 | -6/Lower Caves | Discovered new exit (range 5) 17473 | -6/Lower Caves | Identified exit to Zion 17482 | -6/Lower Caves | Entered Zion 17537 | -6/Zion | Discovered new exit (range 9) 17548 | -6/Zion | System corruption cleaned by Quarantine Array 17581 | -6/Zion | Found CR-A16's Pointy Stick 17704 | -6/Zion | Met Imprinter 17715 | -6/Zion | Imprinted 17717 | -6/Zion | Declared Zion's savior 17774 | -6/Zion | Identified exit to Proximity Caves 17963 | -6/Zion | Entered Proximity Caves 17963 | -5/Proximity Caves | Accompanied by 4 allies 17995 | -5/Proximity Caves | Spotted B-75 Beast 18088 | -5/Proximity Caves | Learned Factory terminal intel 18726 | -5/Proximity Caves | Discovered exit to Factory (range 8) 18747 | -5/Proximity Caves | Entered Factory 18747 | -5/Factory | Accompanied by 2 allies 18747 | -5/Factory | Evolved 2 slots: Propulsion x2 18749 | -5/Factory | Loaded intel: 26 terminal locations 18773 | -5/Factory | Retrieved Zion intel report: Depthwide Sectors/-4 18780 | -5/Factory | Retrieved Zion intel report: Prototype Stockpiles 18833 | -5/Factory | Retrieved Zion intel report: Unaware Analyses 18838 | -5/Factory | Discovered new exit (range 20) 18884 | -5/Factory | Found Prototype Launcher 18884 | -5/Factory | Identified Tesla Bomb Launcher 19144 | -5/Factory | Retrieved Zion intel report: Trap Installations 19423 | -5/Factory | Retrieved Zion intel report: Unaware Schematics 19433 | -5/Factory | Retrieved Zion intel report: Active Garrisons 19451 | -5/Factory | Retrieved Zion intel report: Component Stockpiles 19685 | -5/Factory | Retrieved Zion intel report: Branch Access 19685 | -5/Factory | Identified exit to Upper Caves 19748 | -5/Factory | Discovered new exit (range 13) 19754 | -5/Factory | Identified exit to Factory 19757 | -5/Factory | Retrieved Zion intel report: Active Terminals 19838 | -5/Factory | Retrieved Zion intel report: Emergency Access 19954 | -5/Factory | Retrieved Zion intel report: Unaware Schematics 20029 | -5/Factory | Build established: Scout 20097 | -5/Factory | Entered Upper Caves 20158 | -5/Upper Caves | Spotted B-75 Beast 20421 | -5/Upper Caves | Discovered new exit (range 3) 20421 | -5/Upper Caves | Identified exit to Upper Caves 20421 | -5/Upper Caves | Entered another Upper Caves area 20423 | -5/Upper Caves | Discovered exit to Factory (range 6) 20478 | -5/Upper Caves | Attracted the attention of an 0b10 outpost 20530 | -5/Upper Caves | Discovered new exit (range 5) 20532 | -5/Upper Caves | Identified exit to Zhirov 20532 | -5/Upper Caves | Entered Zhirov 20532 | -5/Zhirov | Discovered new exit (range 3) 20538 | -5/Zhirov | Met Zhirov 20548 | -5/Zhirov | Learned location of Quarantine (-2) 20548 | -5/Zhirov | Learned location of Testing (-3) 20548 | -5/Zhirov | Learned location of Command (-1) 20550 | -5/Zhirov | Zhirov requested help retrieving the SGEMP Prototype 20555 | -5/Zhirov | Found Alien Artifact 20555 | -5/Zhirov | Identified Integrated Reactor 20555 | -5/Zhirov | Installed Integrated Reactor, increased core energy generation (+10) 20562 | -5/Zhirov | Found Alien Artifact 20615 | -5/Zhirov | Identified exit to Proximity Caves 20615 | -5/Zhirov | Entered Proximity Caves 20789 | -4/Proximity Caves | Discovered exit to Factory (range 3) 20789 | -4/Proximity Caves | Entered Factory 20789 | -4/Factory | Evolved 2 slots: Propulsion x1, Utility x1 20820 | -4/Factory | Found Prototype Device 20820 | -4/Factory | Identified Exp. ECM Suite 20874 | -4/Factory | Retrieved Zion intel report: Prototype Stockpiles 20875 | -4/Factory | Zion Trap Resupply teleported in 21026 | -4/Factory | Retrieved Zion intel report: Unaware Analyses 21030 | -4/Factory | Retrieved Zion intel report: Unaware Schematics 21034 | -4/Factory | Retrieved Zion intel report: Depthwide Sectors/-3 21064 | -4/Factory | Discovered new exit (range 18) 21071 | -4/Factory | Identified exit to Research 21096 | -4/Factory | Build established: Ninja 21164 | -4/Factory | Retrieved Zion intel report: Prototype Schematics 21395 | -4/Factory | Retrieved Zion intel report: Active Terminals 21449 | -4/Factory | Spotted B-86 Titan 21476 | -4/Factory | Discovered exit to Research (range 8) 21489 | -4/Factory | Retrieved Zion intel report: Prototype Schematics 21567 | -4/Factory | Repaired Broken Cld. VTOL Module 21582 | -4/Factory | Retrieved Zion intel report: Branch Access 21582 | -4/Factory | Identified exit to Upper Caves 21582 | -4/Factory | Identified exit to Extension 21644 | -4/Factory | Discovered exit to Research (range 5) 21784 | -4/Factory | Spotted B-86 Titan 21791 | -4/Factory | Retrieved Zion intel report: Unaware Analyses 21888 | -4/Factory | Fabricated Exp. Signal Interpreter? 21888 | -4/Factory | Retrieved Zion intel report: Component Schematics 22241 | -4/Factory | Terminal network hard line cut 22371 | -4/Factory | Discovered exit to Research (range 11) 22395 | -4/Factory | Build established: Hacker-Ninja 22449 | -4/Factory | Entered Extension 22690 | -4/Extension | Zion Heavy squad teleported in 22693 | -4/Extension | Zion Heavy squad teleported in 22695 | -4/Extension | Zion Explosive Resupply teleported in 22722 | -4/Extension | Found Prototype Launcher 22722 | -4/Extension | Identified Mni. Smartbomb Launcher 22728 | -4/Extension | Rescued a captive Derelict 22736 | -4/Extension | Zion Offense Resupply teleported in 22742 | -4/Extension | Rescued a captive Derelict 22826 | -4/Extension | Build established: Hacker-Scout 22854 | -4/Extension | Lost 3 allies 23034 | -4/Extension | Spotted B-86 Titan 23036 | -4/Extension | Rescued A7 23284 | -4/Extension | Spotted B-86 Titan 23292 | -4/Extension | Allies destroyed B-86 Titan 23301 | -4/Extension | Destroyed B-86 Titan 23315 | -4/Extension | Zion Hacker squad teleported in 23370 | -4/Extension | Zion Fire squad teleported in 23413 | -4/Extension | Zion Trap Resupply teleported in 23439 | -4/Extension | Rescued a captive Derelict 23440 | -4/Extension | Rescued a captive Derelict 23573 | -4/Extension | Discovered exit to Research (range 10) 23574 | -4/Extension | Discovered new exit (range 6) 23581 | -4/Extension | Identified exit to Cetus 23691 | -4/Extension | Entered Cetus 23691 | -4/Cetus | Accompanied by 19 allies (A7) 23693 | -4/Cetus | Spotted Cetus Guard 23693 | -4/Cetus | Spotted Cetus Guard 23696 | -4/Cetus | Acquired a Cetus Manufacturing Module code from A7 23698 | -4/Cetus | Spotted Cetus Guard 23710 | -4/Cetus | Allies destroyed Cetus Guard 23717 | -4/Cetus | Spotted Cetus Guard 23723 | -4/Cetus | Allies destroyed Cetus Guard 23726 | -4/Cetus | Allies destroyed Cetus Guard 23727 | -4/Cetus | Allies destroyed Cetus Guard 23728 | -4/Cetus | Found Prototype Protection 23728 | -4/Cetus | Identified Zio. Weapon Casing 23754 | -4/Cetus | Lost 8 allies 23756 | -4/Cetus | Started Cetus Manufacturing Module 23781 | -4/Cetus | Manufactured an Enhanced Grunt 23806 | -4/Cetus | Manufactured an Enhanced Grunt 23831 | -4/Cetus | Manufactured an Enhanced Grunt 23844 | -4/Cetus | Build established: Commander-Scout 23856 | -4/Cetus | Manufactured an Enhanced Grunt 23881 | -4/Cetus | Manufactured an Enhanced Grunt 23907 | -4/Cetus | Incoming investigation squad redirected 23928 | -4/Cetus | Discovered new exit (range 22) 23933 | -4/Cetus | Identified exit to Archives 23992 | -4/Cetus | Murdered A7 23993 | -4/Cetus | Extracted ID and sensor layout for unrecognized location from A7's data core 24000 | -4/Cetus | Found Prototype Protection 24001 | -4/Cetus | Identified Med. Regenerative Plating 24004 | -4/Cetus | Entered Archives 24004 | -4/Archives | Accompanied by 15 allies 24032 | -4/Archives | Discovered exit to Research (range 19) 24036 | -4/Archives | Discovered new exit (range 17) 24045 | -4/Archives | Discovered new exit (range 21) 24062 | -4/Archives | Lost 3 allies 24077 | -4/Archives | Identified exit to Hub_04(d) 24966 | -4/Archives | Entered Hub_04(d) 24966 | -4/Hub_04(d) | Accompanied by 12 allies 24976 | -4/Hub_04(d) | Zion Light squad teleported in 25102 | -4/Hub_04(d) | Zion Light squad teleported in 25109 | -4/Hub_04(d) | P-70 Sage assimilated allied 0W-8Q8(z) 25113 | -4/Hub_04(d) | Garrison activated, responded to threat 25118 | -4/Hub_04(d) | P-70 Sage assimilated allied ED-WR4(z) 25200 | -4/Hub_04(d) | Lost 12 allies 25207 | -4/Hub_04(d) | Network Hub disabled 25215 | -4/Hub_04(d) | Spotted Lightning 25225 | -4/Hub_04(d) | Spotted Lightning 25235 | -4/Hub_04(d) | Spotted Lightning 25236 | -4/Hub_04(d) | Identified Transdimensional Reconstructor 25236 | -4/Hub_04(d) | Warped through subspace 25244 | -4/Hub_04(d) | Discovered exit to Research (range 5) 25248 | -4/Hub_04(d) | Entered Research 25248 | -3/Research | Evolved 2 slots: Power x1, Propulsion x1 25257 | -3/Research | Retrieved Zion intel report: Emergency Access 25270 | -3/Research | Discovered new exit (range 3) 25270 | -3/Research | Identified exit to Research 25278 | -3/Research | Lost 3 parts (2n1u) 25416 | -3/Research | Build established: Hacker-Scout 25457 | -3/Research | Destroyed 8 combat bots 25498 | -3/Research | First assault squad dispatched 25506 | -3/Research | Discovered exit to Research (range 19) 25513 | -3/Research | Retrieved Zion intel report: Guard Positions 25588 | -3/Research | Found Exp. Signal Interpreter 25739 | -3/Research | Discovered new exit (range 19) 25772 | -3/Research | Retrieved Zion intel report: Component Schematics 25778 | -3/Research | Spotted B-86 Titan 25838 | -3/Research | Retrieved Zion intel report: Prototype Schematics 25842 | -3/Research | Identified exit to Testing 25842 | -3/Research | Entered Testing 25844 | -3/Testing | Found Prototype Processor 25844 | -3/Testing | Identified Exp. Terrain Scan Processor 26024 | -3/Testing | Repaired Cld. Nuclear Pulse Thruster? 26063 | -3/Testing | Retrieved Zion intel report: Prototype Stockpiles 26125 | -3/Testing | Found Prototype Hackware 26133 | -3/Testing | Discovered exit to Research (range 7) 26234 | -3/Testing | Build established: Hacker-Ninja 26310 | -3/Testing | Retrieved Zion intel report: Active Garrisons 26330 | -3/Testing | Retrieved Zion intel report: Unaware Analyses 26332 | -3/Testing | Rewired PX-LUPK3DP4U7 26340 | -3/Testing | Retrieved Zion intel report: Trap Installations 26470 | -3/Testing | Retrieved Zion intel report: Unaware Analyses 26500 | -3/Testing | Entered Research 26500 | -2/Research | Evolved 2 slots: Utility x2 26520 | -2/Research | Identified System Mapper 26700 | -2/Research | Fabricated Nanosword? 26809 | -2/Research | Spotted B-90 Cyclops 26816 | -2/Research | Retrieved Zion intel report: Main Access 26816 | -2/Research | Identified exit to Access 26931 | -2/Research | Spotted B-90 Cyclops 26991 | -2/Research | Lost 3 parts (1n2w) 27000 | -2/Research | Retrieved Zion intel report: Component Stockpiles 27001 | -2/Research | Zion Hacker squad teleported in 27077 | -2/Research | Retrieved Zion intel report: Component Schematics 27215 | -2/Research | Cargo convoy interrupted 27235 | -2/Research | Incoming assault squad redirected 27261 | -2/Research | Incoming assault squad redirected 27263 | -2/Research | Incoming assault squad redirected 27449 | -2/Research | Retrieved Zion intel report: Emergency Access 27636 | -2/Research | Retrieved Zion intel report: Guard Positions 27650 | -2/Research | Discovered new exit (range 21) 27669 | -2/Research | Identified exit to Quarantine 27669 | -2/Research | Entered Quarantine 27799 | -2/Quarantine | Found Alien Impact Weapon 27823 | -2/Quarantine | Retrieved Zion intel report: Main Access 27866 | -2/Quarantine | Retrieved Zion intel report: Prototype Schematics 27877 | -2/Quarantine | Found Alien Artifact 27877 | -2/Quarantine | Identified Subatomic Replicator 27886 | -2/Quarantine | Found Alien Artifact 27886 | -2/Quarantine | Identified Core Reset Matrix 27886 | -2/Quarantine | Identified Core Stripper 27886 | -2/Quarantine | Used Core Reset Matrix 27890 | -2/Quarantine | Detected hypermatrix surge 27890 | -2/Quarantine | Sensed 14 artifacts in vicinity 27944 | -2/Quarantine | Found Sigix Broadsword 27953 | -2/Quarantine | Retrieved Zion intel report: Prototype Stockpiles 27955 | -2/Quarantine | Discovered exit to Access (range 19) 27998 | -2/Quarantine | Entered Access 27998 | -1/Access | Evolved 2 slots: Utility x2 28026 | -1/Access | Zion Heavy squad teleported in 28096 | -1/Access | Retrieved Zion intel report: Main Access 28096 | -1/Access | Identified exit to Surface 28304 | -1/Access | Spotted B-99 Colossus 28344 | -1/Access | Discovered new exit (range 7) 28346 | -1/Access | Identified exit to Command 28346 | -1/Access | Entered Command 28350 | -1/Command | Found Prototype Hackware 28350 | -1/Command | Identified Exp. System Shield 28407 | -1/Command | Spotted B-99 Colossus 28427 | -1/Command | Retrieved Zion intel report: Trap Installations 28441 | -1/Command | Retrieved Zion intel report: Guard Positions 28491 | -1/Command | Retrieved Zion intel report: Unaware Analyses 28505 | -1/Command | Retrieved Zion intel report: Main Access 28510 | -1/Command | Retrieved Zion intel report: Emergency Access 28532 | -1/Command | Retrieved Zion intel report: Unaware Schematics 28555 | -1/Command | Disengaged cave seal 28602 | -1/Command | Disengaged cave seal 28654 | -1/Command | Used Subatomic Replicator to replicate Centrium Light Armor Plating 28673 | -1/Command | Zionites emerged from the dark tunnel 28679 | -1/Command | Lost 6 allies 28689 | -1/Command | Retrieved Zion intel report: Unaware Schematics 28711 | -1/Command | Allies destroyed B-99 Colossus 28725 | -1/Command | Spotted Alpha 7 28740 | -1/Command | Lost 3 allies 28846 | -1/Command | First assault squad dispatched 28846 | -1/Command | Spotted M Guard 28846 | -1/Command | Spotted M Guard 28846 | -1/Command | Spotted Combat Programmer 28846 | -1/Command | Spotted Combat Programmer 28869 | -1/Command | Combat Programmer assimilated allied GL-VMQ(z) 28878 | -1/Command | Combat Programmer assimilated allied L5-NU5(z) 28880 | -1/Command | Allies destroyed Combat Programmer 28902 | -1/Command | Build established: Commander-Sprinter 28907 | -1/Command | Lost 3 allies 28916 | -1/Command | Allies destroyed M Guard 28924 | -1/Command | Allies destroyed M Guard 28924 | -1/Command | All MAIN.C guards destroyed 28925 | -1/Command | Found Prototype Launcher 28945 | -1/Command | Found Prototype Protection 28945 | -1/Command | Identified Zio. Weapon Casing 28949 | -1/Command | Found Zio. Weapon Casing 29038 | -1/Command | Met MAIN.C 29049 | -1/Command | 0b10 Conduit disabled 29058 | -1/Command | Allies destroyed MAIN.C Shell 29060 | -1/Command | MAIN.C activated Command garrisons 29068 | -1/Command | Destroyed MAIN.C 29071 | -1/Command | Identified Ragnarok Missile Launcher 29071 | -1/Command | Discovered exit to Surface (range 44) 29071 | -1/Command | Discovered exit to Surface (range 92) 29071 | -1/Command | Extracted map data and part IDs from MAIN.C's data core 29089 | -1/Command | Lost 4 allies 29166 | *** | Heading to fleet! Last Messages --------------- 29071_ Acquired data core, extracted map data and part IDs. 29111_ System corrupted: Matter fused (-7). 29111_ Acquired 7 matter. 29145_ Z-Experimental destroyed. 29148_ Destroyed Xenon Bombardment Thruster. 29148_ S-43 Plague suffers critical hit (Burn). 29151_ S-43 Plague heat damages Xenon Bombardment Thruster, Lgt. Antimatter Reactor, Xenon Bombardment Thruster, Hvy. Machine Gun. 29151_ Z-Experimental suffers critical hit (Destroy). 29151_ EB-RUS(i) destroyed. 29151_ S-43 Plague destroyed. 29152_ System corrupted: Impulse Thruster Array rejected. 29152_ Acquired Impulse Thruster Array. 29152_ S-43 Plague destroyed. 29152_ S-43 Plague suffers critical hit (Intensify). 29152_ Destroyed Hvy. Machine Gun. 29152_ S-43 Plague destroyed. 29153_ Destroyed Antigrav System. 29154_ S-43 Plague destroyed. 29156_ Destroyed Lgt. Antimatter Reactor. Map ----- +----------------------------------------------------+ | ##/##### #""""""# """" ## ##![# #?# | | ############ """" ## ##=%# #?# | | #??????????# """" ## ! ##%*# #?# | | #??????????# """" ## ##!*# #?# | | #??????????# ## ##=%# #?# | | #??????????# ! ## ##%*#######?# | | #??????????# ## ##^^###?????# | | #??????????#######+##########+##%^^^ ####### | | #???############# =[% = | | #???# ! # ![/ | | ##### # | | ] + + # ####"## | | ##### # " #??#### | | #???# + "%" #?????# | | +######???# """ """ # """ """ ##????# | | #????????# """T""" # """T""" #????# | | #????##################+############### #????# | | ###### #??# #???????# #????? | | + #### = ######### #????? | | # "" + + ## # #????? | | # """" #### ## ] # #????? | | # """" #??# ## + #????? | | + "" #??############### # ##+###??? | | #### # #???????######???# # # #??? | | ???# # #???????# #???# # # #### | | ???# # ! #???????# @ #???######## # ! "" # | | #### ##########???????# #????####### # """# | | #????????????????### #????# # T"# | | #??????????????????# #????# # """# | | ################???# #????# # "" # | | #???# #????# # #### | | #???# #????# # #??? | | #???# ###### ###+###??? | | #???# #?# #????? | | #???# #?# #????? | | ##### #?# #????? | | = ###+####?? | | ! %* """" # #?? | | ###+#### !%= =*[ """" # #?? | | # # == =%= % """" # #?? | | # # #######+####### """ + #?? | | # + ## # # ] #?? | | + # + # # #?? | | ## ## ## *# ########?? | | ?# ## ## # #############????????? | | ?# ## ## # #????????????????????? | | ?# ## ####+##+##/#### #????????????????????? | | ?# ## #### #????????????????????? | | ?# + #????????????????????? | | ?# #############+########???????????????????? | +----------------------------------------------------+ Best States ------------- Heat Dissipation 97 Energy Generation 57 Energy Capacity 860 Matter Stores 300 Matter Capacity 500 Sight Range 22 Robot Scan Range 20 Terrain Scan Range 20 Terrain Scan Density 210 ECM Strength 1 Jamming Range 16 EM Shielding 2 Armor Coverage 375 Resistance: KI 30 Core Shielding 20 Weapon Shielding 100 Weapon Cycling 15 Evasion (%) 77 Targeting Accuracy 8 Melee Accuracy 20 Target Analysis 6 Recoil Reduction 4 Matter Filtering 30 Offensive Hacking 48 Defensive Hacking 38 Authchip Count 1 Trap Extractor Capacity 8 Item Schematics ----------------- None Robot Schematics ------------------ K-01 Serf | -1/Command | Z-intel A-15 Conveyor | -1/Command | Z-intel A-02 Transporter | -1/Command | Z-intel A-27 Freighter | -1/Command | Z-intel R-06 Scavenger | -1/Command | Z-intel Y-72 Warden | -1/Command | Z-intel R-10 Processor | -1/Command | Z-intel T-07 Excavator | -1/Command | Z-intel B-74 Champion | -1/Command | Z-intel G-73 Enforcer | -1/Command | Z-intel Fabricated ------------ Adv. Sensor Array | x2 | -6/Factory Exp. Signal Interpreter | x1 | -4/Factory | Authchip Nanosword | x1 | -2/Research Repaired ---------- Mni. Grenade Launcher | 8% | -10/Materials Katana | 4% | -9/Materials Imp. Assault Rifle | 10% | -8/Materials Aluminum Leg | 32% | -8/Materials Aluminum Leg | 44% | -8/Materials Aluminum Leg | 66% | -8/Materials Cld. VTOL Module | 98% | -4/Factory | Broken Cld. Nuclear Pulse Thruster | 24% | -3/Testing Alien Tech Used ----------------- Integrated Reactor Transdimensional Reconstructor Subatomic Replicator Core Reset Matrix Sigix Broadsword Core Stripper Achievements -------------- void main() Challenges ------------ None Game ------ Seed FlightInsulationSpecial Manual? 0 Play Time 06:53:31 Cumulative 344.0 hours Start 2025.09.07 @ 21:05:59 End 2025.09.11 @ 20:55:17 Sessions 11 Manual Loads 0 Difficulty Rogue Special Mode None Game No. 138 Rogue 117 Adventurer 21 Explorer 0 Win Type 2 Total 14 Types 9/0/4/1/0/0/0/0/0/0 Lore% 51 Gallery% 71 Achievement% 64 Wizard Run 0 Options --------- Layout 1 ASCII 0 Keyboard 0 Movement Mouse Keybinds 0 Fullscreen 2 Font 32/SmallcapsGlow Map View 77x35 Zoom Use 0% Tactical HUD 1 Map Filters NONE Filters NONE Steam 1 RUN: fbdce7af-3985-46aa-a6ec-113cc2ade77f